Workbook

Sheet Sheet1
R4: 3. กดปุ่มวิเคราะห์ข้อมูล
L5: สถาบัน กศน. ภาคกลาง
L6: http://www.crnfe.ac.th
B8: จำนวนแบบทดสอบ | D8: 41 | E8: ฉบับ | G8: ลักษณะตัวเลือก | J8: ก | K8: ข | L8: ค | M8: ง | GU8: (จำนวนข้อสูงสุด ไม่เกิน 200 ข้อ นะครับ)
B9: 1. กำหนดข้อที่ถูกของทุกข้อคำถาม
B10: ข้อ | C10: 1 | D10: 2 | E10: 3 | F10: 4 | G10: 5 | H10: 6 | I10: 7 | J10: 8 | K10: 9 | L10: 10 | M10: 11 | N10: 12 | O10: 13 | P10: 14 | Q10: 15 | R10: 16 | S10: 17 | T10: 18 | U10: 19 | V10: 20 | W10: 21 | X10: 22 | Y10: 23 | Z10: 24 | AA10: 25 | AB10: 26 | AC10: 27 | AD10: 28 | AE10: 29 | AF10: 30 | AG10: 31 | AH10: 32 | AI10: 33 | AJ10: 34 | AK10: 35 | AL10: 36 | AM10: 37 | AN10: 38 | AO10: 39 | AP10: 40 | AQ10: 41 | AR10: 42 | AS10: 43 | AT10: 44 | AU10: 45 | AV10: 46 | AW10: 47 | AX10: 48 | AY10: 49 | AZ10: 50 | BA10: 51 | BB10: 52 | BC10: 53 | BD10: 54 | BE10: 55 | BF10: 56 | BG10: 57 | BH10: 58 | BI10: 59 | BJ10: 60 | BK10: 61 | BL10: 62 | BM10: 63 | BN10: 64 | BO10: 65 | BP10: 66 | BQ10: 67 | BR10: 68 | BS10: 69 | BT10: 70 | BU10: 71 | BV10: 72 | BW10: 73 | BX10: 74 | BY10: 75 | BZ10: 76 | CA10: 77 | CB10: 78 | CC10: 79 | CD10: 80 | CE10: 81 | CF10: 82 | CG10: 83 | CH10: 84 | CI10: 85 | CJ10: 86 | CK10: 87 | CL10: 88 | CM10: 89 | CN10: 90 | CO10: 91 | CP10: 92 | CQ10: 93 | CR10: 94 | CS10: 95 | CT10: 96 | CU10: 97 | CV10: 98 | CW10: 99 | CX10: 100
B11: คำตอบที่ถูก | C11: ค | D11: ก | E11: ข | F11: ก | G11: ค | H11: ง | I11: ข | J11: ค | K11: ข | L11: ค | M11: ข | N11: ง | O11: ค | P11: ข | Q11: ค | R11: ง | S11: ง | T11: ง | U11: ค | V11: ค | W11: ข | X11: ค | Y11: ก | Z11: ง | AA11: ก | AB11: ค | AC11: ข | AD11: ค | AE11: ก | AF11: ง | AG11: ข | AH11: ข | AI11: ข | AJ11: ก | AK11: ง | AL11: ค | AM11: ก | AN11: ก | AO11: ง | AP11: ง | AQ11: ค | AR11: ง | AS11: ค | AT11: ง | AU11: ก | AV11: ง | AW11: ง | AX11: ก | AY11: ง | AZ11: ค
B13: 2. กรอกคำตอบของผู้ทำแบบทดสอบ แต่ละคน (สูงสุด ไม่เกิน 2,000 คน)
B14: ฉบับ\ข้อ | C14: 1 | D14: 2 | E14: 3 | F14: 4 | G14: 5 | H14: 6 | I14: 7 | J14: 8 | K14: 9 | L14: 10 | M14: 11 | N14: 12 | O14: 13 | P14: 14 | Q14: 15 | R14: 16 | S14: 17 | T14: 18 | U14: 19 | V14: 20 | W14: 21 | X14: 22 | Y14: 23 | Z14: 24 | AA14: 25 | AB14: 26 | AC14: 27 | AD14: 28 | AE14: 29 | AF14: 30 | AG14: 31 | AH14: 32 | AI14: 33 | AJ14: 34 | AK14: 35 | AL14: 36 | AM14: 37 | AN14: 38 | AO14: 39 | AP14: 40 | AQ14: 41 | AR14: 42 | AS14: 43 | AT14: 44 | AU14: 45 | AV14: 46 | AW14: 47 | AX14: 48 | AY14: 49 | AZ14: 50 | BA14: 51 | BB14: 52 | BC14: 53 | BD14: 54 | BE14: 55 | BF14: 56 | BG14: 57 | BH14: 58 | BI14: 59 | BJ14: 60 | BK14: 61 | BL14: 62 | BM14: 63 | BN14: 64 | BO14: 65 | BP14: 66 | BQ14: 67 | BR14: 68 | BS14: 69 | BT14: 70 | BU14: 71 | BV14: 72 | BW14: 73 | BX14: 74 | BY14: 75 | BZ14: 76 | CA14: 77 | CB14: 78 | CC14: 79 | CD14: 80 | CE14: 81 | CF14: 82 | CG14: 83 | CH14: 84 | CI14: 85 | CJ14: 86 | CK14: 87 | CL14: 88 | CM14: 89 | CN14: 90 | CO14: 91 | CP14: 92 | CQ14: 93 | CR14: 94 | CS14: 95 | CT14: 96 | CU14: 97 | CV14: 98 | CW14: 99 | CX14: 100
B15: 1 | C15: ข | D15: ข | E15: ข | F15: ข | G15: ง | H15: ง | I15: ข | J15: ข | K15: ง | L15: ก | M15: ข | N15: ข | O15: ค | P15: ค | Q15: ค | R15: ค | S15: ง | T15: ง | U15: ค | V15: ข | W15: ค | X15: ข | Y15: ก | Z15: ค | AA15: ข | AB15: ก | AC15: ข | AD15: ง | AE15: ค | AF15: ง | AG15: ข | AH15: ข | AI15: ง | AJ15: ง | AK15: ง | AL15: ค | AM15: ค | AN15: ง | AO15: ก | AP15: ค | AQ15: ค | AR15: ง | AS15: ข | AT15: ค | AU15: ก | AV15: ง | AW15: ง | AX15: ก | AY15: ง | AZ15: ค
B16: 2 | C16: ค | D16: ก | E16: ข | F16: ง | G16: ค | H16: ง | I16: ค | J16: ค | K16: ค | L16: ค | M16: ข | N16: ง | O16: ค | P16: ก | Q16: ค | R16: ก | S16: ก | T16: ง | U16: ค | V16: ค | W16: ข | X16: ค | Y16: ค | Z16: ง | AA16: ง | AB16: ข | AC16: ข | AD16: ง | AE16: ข | AF16: ง | AG16: ข | AH16: ข | AI16: ก | AJ16: ค | AK16: ข | AL16: ก | AM16: ก | AN16: ก | AO16: ข | AP16: ก | AQ16: ค | AR16: ก | AS16: ก | AT16: ง | AU16: ก | AV16: ก | AW16: ค | AX16: ก | AY16: ข | AZ16: ง
B17: 3 | C17: ค | D17: ก | E17: ข | F17: ข | G17: ค | H17: ง | I17: ข | J17: ง | K17: ง | L17: ค | M17: ข | N17: ข | O17: ก | P17: ข | Q17: ค | R17: ง | S17: ง | T17: ข | U17: ง | V17: ข | W17: ข | X17: ข | Y17: ข | Z17: ข | AA17: ข | AB17: ก | AC17: ก | AD17: ค | AE17: ก | AF17: ง | AG17: ก | AH17: ข | AI17: ง | AJ17: ง | AK17: ง | AL17: ข | AM17: ง | AN17: ง | AO17: ง | AP17: ง | AQ17: ง | AR17: ง | AS17: ข | AT17: ก | AU17: ค | AV17: ก | AW17: ก | AX17: ง | AY17: ก | AZ17: ก
B18: 4 | C18: ข | D18: ค | E18: ก | F18: ข | G18: ค | H18: ค | I18: ก | J18: ง | K18: ก | L18: ง | M18: ข | N18: ก | O18: ค | P18: ง | Q18: ค | R18: ก | S18: ง | T18: ข | U18: ก | V18: ข | W18: ค | X18: ข | Y18: ก | Z18: ง | AA18: ข | AB18: ค | AC18: ก | AD18: ค | AE18: ข | AF18: ง | AG18: ข | AH18: ข | AI18: ง | AJ18: ง | AK18: ง | AL18: ก | AM18: ค | AN18: ง | AO18: ค | AP18: ก | AQ18: ค | AR18: ง | AS18: ง | AT18: ค | AU18: ข | AV18: ง | AW18: ง | AX18: ก | AY18: ข | AZ18: ค
B19: 5 | C19: ค | D19: ก | E19: ข | F19: ข | G19: ค | H19: ง | I19: ก | J19: ข | K19: ค | L19: ค | M19: ง | N19: ง | O19: ก | P19: ก | Q19: ค | R19: ง | S19: ง | T19: ข | U19: ค | V19: ง | W19: ค | X19: ค | Y19: ก | Z19: ง | AA19: ค | AB19: ง | AC19: ค | AD19: ก | AE19: ง | AF19: ก | AG19: ข | AH19: ข | AI19: ก | AJ19: ก | AK19: ง | AL19: ค | AM19: ก | AN19: ง | AO19: ข | AP19: ง | AQ19: ค | AR19: ง | AS19: ข | AT19: ค | AU19: ข | AV19: ง | AW19: ก | AX19: ก | AY19: ง | AZ19: ค
B20: 6 | C20: ก | D20: ก | E20: ข | F20: ค | G20: ค | H20: ง | I20: ค | J20: ก | K20: ค | L20: ง | M20: ก | N20: ข | O20: ก | P20: ค | Q20: ง | R20: ก | S20: ง | T20: ข | U20: ค | V20: ก | W20: ข | X20: ง | Y20: ข | Z20: ง | AA20: ค | AB20: ข | AC20: ข | AD20: ง | AE20: ข | AF20: ง | AG20: ก | AH20: ค | AI20: ง | AJ20: ค | AK20: ก | AL20: ก | AM20: ง | AN20: ง | AO20: ข | AP20: ง | AQ20: ง | AR20: ง | AS20: ข | AT20: ข | AU20: ข | AV20: ง | AW20: ข | AX20: ค | AY20: ข | AZ20: ก
B21: 7 | C21: ค | D21: ก | E21: ข | F21: ข | G21: ค | H21: ก | I21: ข | J21: ก | K21: ง | L21: ค | M21: ข | N21: ข | O21: ก | P21: ข | Q21: ข | R21: ง | S21: ง | T21: ง | U21: ก | V21: ค | W21: ง | X21: ข | Y21: ก | Z21: ก | AA21: ก | AB21: ค | AC21: ค | AD21: ค | AE21: ง | AF21: ง | AG21: ข | AH21: ข | AI21: ก | AJ21: ค | AK21: ง | AL21: ก | AM21: ก | AN21: ก | AO21: ข | AP21: ง | AQ21: ค | AR21: ง | AS21: ก | AT21: ง | AU21: ก | AV21: ง | AW21: ก | AX21: ก | AY21: ก | AZ21: ข
B22: 8 | C22: ค | D22: ก | E22: ข | F22: ข | G22: ค | H22: ง | I22: ข | J22: ค | K22: ข | L22: ค | M22: ข | N22: ง | O22: ค | P22: ข | Q22: ค | R22: ง | S22: ง | T22: ง | U22: ค | V22: ค | W22: ง | X22: ค | Y22: ก | Z22: ง | AA22: ก | AB22: ค | AC22: ข | AD22: ค | AE22: ก | AF22: ง | AG22: ข | AH22: ข | AI22: ค | AJ22: ก | AK22: ง | AL22: ค | AM22: ก | AN22: ก | AO22: ง | AP22: ก | AQ22: ค | AR22: ง | AS22: ค | AT22: ง | AU22: ก | AV22: ง | AW22: ง | AX22: ก | AY22: ง | AZ22: ค
B23: 9 | C23: ค | D23: ก | E23: ข | F23: ข | G23: ค | H23: ค | I23: ข | J23: ค | K23: ค | L23: ค | M23: ข | N23: ก | O23: ค | P23: ข | Q23: ข | R23: ค | S23: ก | T23: ข | U23: ค | V23: ข | W23: ง | X23: ข | Y23: ข | Z23: ก | AA23: ก | AB23: ข | AC23: ค | AD23: ก | AE23: ข | AF23: ง | AG23: ข | AH23: ช | AI23: ก | AJ23: ง | AK23: ง | AL23: ข | AM23: ค | AN23: ง | AO23: ข | AP23: ง | AQ23: ค | AR23: ง | AS23: ค | AT23: ง | AU23: ก | AV23: ง | AW23: ง | AX23: ก | AY23: ง | AZ23: ค
B24: 10 | C24: ค | D24: ง | E24: ก | F24: ข | G24: ค | H24: ง | I24: ค | J24: ก | K24: ง | L24: ง | M24: ข | N24: ก | O24: ค | P24: ง | Q24: ค | R24: ค | S24: ง | T24: ข | U24: ก | V24: ข | W24: ค | X24: ก | Y24: ค | Z24: ข | AA24: ง | AB24: ข | AC24: ก | AD24: ก | AE24: ก | AF24: ก | AG24: ค | AH24: ง | AI24: ง | AJ24: ง | AK24: ง | AL24: ง | AM24: ง | AN24: ง | AO24: ง | AP24: ง | AQ24: ค | AR24: ง | AS24: ค | AT24: ง | AU24: ก | AV24: ง | AW24: ง | AX24: ง | AY24: ง | AZ24: ค
B25: 11 | C25: ค | D25: ก | E25: ข | F25: ก | G25: ง | H25: ง | I25: ข | J25: ก | K25: ง | L25: ค | M25: ข | N25: ข | O25: ก | P25: ค | Q25: ข | R25: ง | S25: ง | T25: ง | U25: ก | V25: ค | W25: ง | X25: ข | Y25: ค | Z25: ก | AA25: ข | AB25: ค | AC25: ข | AD25: ค | AE25: ค | AF25: ค | AG25: ข | AH25: ข | AI25: ก | AJ25: ง | AK25: ง | AL25: ก | AM25: ก | AN25: ก | AO25: ง | AP25: ง | AQ25: ค | AR25: ง | AS25: ข | AT25: ง | AU25: ก | AV25: ง | AW25: ง | AX25: ก | AY25: ข | AZ25: ค
B26: 12 | C26: ค | D26: ก | E26: ข | F26: ง | G26: ค | H26: ก | I26: ข | J26: ค | K26: ค | L26: ค | M26: ข | N26: ก | O26: ค | P26: ข | Q26: ค | R26: ก | S26: ก | T26: ง | U26: ข | V26: ค | W26: ค | X26: ข | Y26: ค | Z26: ข | AA26: ค | AB26: ก | AC26: ค | AD26: ค | AE26: ก | AF26: ค | AG26: ข | AH26: ข | AI26: ก | AJ26: ง | AK26: ง | AL26: ค | AM26: ง | AN26: ง | AO26: ข | AP26: ง | AQ26: ก | AR26: ก | AS26: ข | AT26: ก | AU26: ง | AV26: ง | AW26: ง | AX26: ก | AY26: ง | AZ26: ง
B27: 13 | C27: ค | D27: ก | E27: ข | F27: ข | G27: ค | H27: ค | I27: ข | J27: ค | K27: ข | L27: ข | M27: ข | N27: ข | O27: ก | P27: ค | Q27: ก | R27: ค | S27: ง | T27: ข | U27: ข | V27: ก | W27: ข | X27: ง | Y27: ก | Z27: ง | AA27: ข | AB27: ค | AC27: ค | AD27: ค | AE27: ก | AF27: ค | AG27: ข | AH27: ข | AI27: ก | AJ27: ง | AK27: ง | AL27: ก | AM27: ง | AN27: ก | AO27: ก | AP27: ง | AQ27: ค | AR27: ง | AS27: ค | AT27: ค | AU27: ก | AV27: ค | AW27: ก | AX27: ก | AY27: ง | AZ27: ค
B28: 14 | C28: ค | D28: ก | E28: ข | F28: ง | G28: ค | H28: ง | I28: ข | J28: ค | K28: ข | L28: ข | M28: ข | N28: ข | O28: ค | P28: ข | Q28: ก | R28: ค | S28: ง | T28: ค | U28: ข | V28: ข | W28: ข | X28: ง | Y28: ก | Z28: ง | AA28: ข | AB28: ง | AC28: ข | AD28: ค | AE28: ก | AF28: ค | AG28: ข | AH28: ข | AI28: ก | AJ28: ค | AK28: ง | AL28: ก | AM28: ง | AN28: ก | AO28: ก | AP28: ง | AQ28: ค | AR28: ง | AS28: ค | AT28: ค | AU28: ก | AV28: ค | AW28: ก | AX28: ก | AY28: ง | AZ28: ค
B29: 15 | C29: ค | D29: ก | E29: ข | F29: ก | G29: ค | H29: ข | I29: ข | J29: ก | K29: ค | L29: ค | M29: ก | N29: ง | O29: ค | P29: ก | Q29: ข | R29: ง | S29: ก | T29: ก | U29: ค | V29: ค | W29: ข | X29: ค | Y29: ค | Z29: ง | AA29: ก | AB29: ค | AC29: ค | AD29: ค | AE29: ก | AF29: ค | AG29: ก | AH29: ข | AI29: ง | AJ29: ก | AK29: ง | AL29: ข | AM29: ก | AN29: ง | AO29: ค | AP29: ง | AQ29: ค | AR29: ง | AS29: ง | AT29: ง | AU29: ก | AV29: ค | AW29: ค | AX29: ก | AY29: ง | AZ29: ค
B30: 16 | C30: ค | D30: ก | E30: ก | F30: ข | G30: ค | H30: ง | I30: ข | J30: ค | K30: ข | L30: ค | M30: ข | N30: ง | O30: ก | P30: ข | Q30: ค | R30: ง | S30: ง | T30: ง | U30: ค | V30: ค | W30: ค | X30: ค | Y30: ก | Z30: ง | AA30: ก | AB30: ค | AC30: ข | AD30: ค | AE30: ก | AF30: ง | AG30: ข | AH30: ข | AI30: ก | AJ30: ก | AK30: ง | AL30: ค | AM30: ก | AN30: ก | AO30: ง | AP30: ก | AQ30: ค | AR30: ง | AS30: ค | AT30: ง | AU30: ก | AV30: ง | AW30: ง | AX30: ก | AY30: ง | AZ30: ค
B31: 17 | C31: ข | D31: ก | E31: ข | F31: ข | G31: ค | H31: ง | I31: ข | J31: ง | K31: ข | L31: ค | M31: ก | N31: ข | O31: ค | P31: ก | Q31: ข | R31: ง | S31: ง | T31: ง | U31: ค | V31: ก | W31: ข | X31: ค | Y31: ก | Z31: ง | AA31: ก | AB31: ง | AC31: ข | AD31: ง | AE31: ค | AF31: ค | AG31: ข | AH31: ข | AI31: ค | AJ31: ง | AK31: ง | AL31: ง | AM31: ง | AN31: ก | AO31: ง | AP31: ง | AQ31: ค | AR31: ง | AS31: ง | AT31: ค | AU31: ก | AV31: ง | AW31: ง | AX31: ก | AY31: ค | AZ31: ค
B32: 18 | C32: ข | D32: ง | E32: ข | F32: ก | G32: ค | H32: ค | I32: ข | J32: ง | K32: ก | L32: ก | M32: ก | N32: ค | O32: ง | P32: ก | Q32: ค | R32: ก | S32: ค | T32: ข | U32: ง | V32: ก | W32: ค | X32: ง | Y32: ค | Z32: ข | AA32: ก | AB32: ก | AC32: ข | AD32: ข | AE32: ง | AF32: ง | AG32: ข | AH32: ข | AI32: ค | AJ32: ง | AK32: ง | AL32: ข | AM32: ก | AN32: ข | AO32: ข | AP32: ง | AQ32: ค | AR32: ก | AS32: ข | AT32: ง | AU32: ค | AV32: ก | AW32: ข | AX32: ค | AY32: ข | AZ32: ง
B33: 19 | C33: ค | D33: ก | E33: ข | F33: ข | G33: ค | H33: ง | I33: ข | J33: ค | K33: ข | L33: ค | M33: ข | N33: ง | O33: ค | P33: ข | Q33: ค | R33: ง | S33: ง | T33: ง | U33: ค | V33: ง | W33: ค | X33: ค | Y33: ก | Z33: ก | AA33: ก | AB33: ค | AC33: ข | AD33: ค | AE33: ก | AF33: ง | AG33: ข | AH33: ข | AI33: ก | AJ33: ก | AK33: ง | AL33: ง | AM33: ก | AN33: ก | AO33: ค | AP33: ก | AQ33: ค | AR33: ง | AS33: ค | AT33: ง | AU33: ก | AV33: ง | AW33: ง | AX33: ก | AY33: ง | AZ33: ค
B34: 20 | C34: ค | D34: ก | E34: ข | F34: ก | G34: ค | H34: ข | I34: ข | J34: ก | K34: ค | L34: ค | M34: ก | N34: ง | O34: ค | P34: ก | Q34: ค | R34: ง | S34: ง | T34: ค | U34: ค | V34: ก | W34: ค | X34: ข | Y34: ค | Z34: ข | AA34: ก | AB34: ค | AC34: ข | AD34: ค | AE34: ก | AF34: ค | AG34: ก | AH34: ข | AI34: ง | AJ34: ค | AK34: ง | AL34: ข | AM34: ก | AN34: ง | AO34: ค | AP34: ง | AQ34: ค | AR34: ง | AS34: ง | AT34: ง | AU34: ก | AV34: ค | AW34: ค | AX34: ก | AY34: ง | AZ34: ค
B35: 21 | C35: ข | D35: ก | E35: ข | F35: ง | G35: ค | H35: ง | I35: ข | J35: ค | K35: ข | L35: ค | M35: ข | N35: ข | O35: ค | P35: ค | Q35: ค | R35: ง | S35: ง | T35: ง | U35: ค | V35: ค | W35: ค | X35: ค | Y35: ก | Z35: ง | AA35: ก | AB35: ค | AC35: ข | AD35: ค | AE35: ก | AF35: ง | AG35: ข | AH35: ข | AI35: ก | AJ35: ก | AK35: ง | AL35: ค | AM35: ก | AN35: ก | AO35: ก | AP35: ง | AQ35: ค | AR35: ก | AS35: ง | AT35: ง | AU35: ก | AV35: ง | AW35: ค | AX35: ก | AY35: ง | AZ35: ค
B36: 22 | C36: ค | D36: ก | E36: ข | F36: ก | G36: ค | H36: ค | I36: ข | J36: ค | K36: ข | L36: ค | M36: ข | N36: ข | O36: ข | P36: ก | Q36: ค | R36: ข | S36: ข | T36: ง | U36: ง | V36: ก | W36: ค | X36: ง | Y36: ค | Z36: ค | AA36: ง | AB36: ข | AC36: ข | AD36: ง | AE36: ค | AF36: ค | AG36: ก | AH36: ก | AI36: ค | AJ36: ง | AK36: ง | AL36: ก | AM36: ง | AN36: ง | AO36: ข | AP36: ง | AQ36: ค | AR36: ง | AS36: ข | AT36: ก | AU36: ง | AV36: ก | AW36: ก | AX36: ก | AY36: ง | AZ36: ก
B37: 23 | C37: ค | D37: ก | E37: ข | F37: ข | G37: ค | H37: ค | I37: ข | J37: ค | K37: ข | L37: ข | M37: ข | N37: ข | O37: ก | P37: ค | Q37: ก | R37: ค | S37: ง | T37: ข | U37: ข | V37: ก | W37: ข | X37: ง | Y37: ก | Z37: ง | AA37: ข | AB37: ง | AC37: ข | AD37: ค | AE37: ก | AF37: ค | AG37: ข | AH37: ข | AI37: ก | AJ37: ง | AK37: ง | AL37: ก | AM37: ค | AN37: ข | AO37: ก | AP37: ง | AQ37: ค | AR37: ง | AS37: ข | AT37: ค | AU37: ก | AV37: ค | AW37: ก | AX37: ก | AY37: ง | AZ37: ค
B38: 24 | C38: ข | D38: ค | E38: ข | F38: ข | G38: ค | H38: ข | I38: ข | J38: ค | K38: ง | L38: ข | M38: ข | N38: ข | O38: ค | P38: ก | Q38: ค | R38: ง | S38: ง | T38: ค | U38: ค | V38: ก | W38: ค | X38: ข | Y38: ค | Z38: ข | AA38: ก | AB38: ข | AC38: ข | AD38: ค | AE38: ก | AF38: ค | AG38: ก | AH38: ข | AI38: ง | AJ38: ค | AK38: ง | AL38: ก | AM38: ก | AN38: ง | AO38: ค | AP38: ง | AQ38: ค | AR38: ง | AS38: ง | AT38: ง | AU38: ก | AV38: ค | AW38: ค | AX38: ก | AY38: ง | AZ38: ค
B39: 25 | C39: ค | D39: ก | E39: ข | F39: ข | G39: ค | H39: ค | I39: ข | J39: ค | K39: ง | L39: ค | M39: ข | N39: ข | O39: ก | P39: ข | Q39: ก | R39: ข | S39: ง | T39: ง | U39: ข | V39: ข | W39: ข | X39: ง | Y39: ก | Z39: ง | AA39: ข | AB39: ง | AC39: ข | AD39: ค | AE39: ก | AF39: ค | AG39: ข | AH39: ข | AI39: ก | AJ39: ค | AK39: ข | AL39: ก | AM39: ค | AN39: ง | AO39: ข | AP39: ง | AQ39: ค | AR39: ง | AS39: ก | AT39: ง | AU39: ก | AV39: ง | AW39: ง | AX39: ก | AY39: ง | AZ39: ค
B40: 26 | C40: ข | D40: ง | E40: ข | F40: ข | G40: ข | H40: ข | I40: ข | J40: ง | K40: ง | L40: ค | M40: ข | N40: ง | O40: ก | P40: ข | Q40: ค | R40: ข | S40: ง | T40: ข | U40: ค | V40: ก | W40: ค | X40: ข | Y40: ก | Z40: ค | AA40: ก | AB40: ข | AC40: ก | AD40: ข | AE40: ง | AF40: ค | AG40: ง | AH40: ข | AI40: ข | AJ40: ง | AK40: ง | AL40: ข | AM40: ง | AN40: ง | AO40: ง | AP40: ง | AQ40: ค | AR40: ง | AS40: ก | AT40: ข | AU40: ค | AV40: ง | AW40: ง | AX40: ก | AY40: ง | AZ40: ค
B41: 27 | C41: ค | D41: ก | E41: ข | F41: ข | G41: ค | H41: ง | I41: ข | J41: ข | K41: ง | L41: ค | M41: ง | N41: ข | O41: ก | P41: ก | Q41: ค | R41: ง | S41: ง | T41: ข | U41: ค | V41: ข | W41: ค | X41: ค | Y41: ง | Z41: ง | AA41: ก | AB41: ค | AC41: ข | AD41: ค | AE41: ข | AF41: ง | AG41: ข | AH41: ง | AI41: ง | AJ41: ง | AK41: ง | AL41: ค | AM41: ก | AN41: ง | AO41: ง | AP41: ง | AQ41: ค | AR41: ก | AS41: ค | AT41: ง | AU41: ก | AV41: ง | AW41: ง | AX41: ก | AY41: ง | AZ41: ค
B42: 28 | C42: ข | D42: ค | E42: ข | F42: ข | G42: ค | H42: ง | I42: ค | J42: ค | K42: ง | L42: ง | M42: ก | N42: ก | O42: ก | P42: ข | Q42: ค | R42: ค | S42: ง | T42: ข | U42: ก | V42: ค | W42: ค | X42: ข | Y42: ค | Z42: ข | AA42: ง | AB42: ก | AC42: ข | AD42: ก | AE42: ค | AF42: ข | AG42: ก | AH42: ข | AI42: ง | AJ42: ค | AK42: ง | AL42: ก | AM42: ก | AN42: ง | AO42: ค | AP42: ง | AQ42: ค | AR42: ง | AS42: ง | AT42: ง | AU42: ก | AV42: ค | AW42: ค | AX42: ก | AY42: ง | AZ42: ค
B43: 29 | C43: ข | D43: ก | E43: ข | F43: ง | G43: ค | H43: ง | I43: ข | J43: ค | K43: ข | L43: ค | M43: ข | N43: ค | O43: ค | P43: ข | Q43: ก | R43: ก | S43: ง | T43: ค | U43: ข | V43: ข | W43: ค | X43: ง | Y43: ข | Z43: ก | AA43: ก | AB43: ค | AC43: ข | AD43: ก | AE43: ค | AF43: ค | AG43: ค | AH43: ข | AI43: ก | AJ43: ข | AK43: ง | AL43: ก | AM43: ง | AN43: ก | AO43: ง | AP43: ง | AQ43: ค | AR43: ง | AS43: ค | AT43: ง | AU43: ก | AV43: ง | AW43: ก | AX43: ก | AY43: ง | AZ43: ก
B44: 30 | C44: ค | D44: ก | E44: ก | F44: ก | G44: ค | H44: ง | I44: ค | J44: ข | K44: ง | L44: ง | M44: ข | N44: ค | O44: ก | P44: ข | Q44: ค | R44: ค | S44: ง | T44: ข | U44: ก | V44: ค | W44: ง | X44: ง | Y44: ข | Z44: ข | AA44: ง | AB44: ก | AC44: ข | AD44: ข | AE44: ค | AF44: ง | AG44: ค | AH44: ง | AI44: ก | AJ44: ง | AK44: ง | AL44: ข | AM44: ง | AN44: ง | AO44: ค | AP44: ก | AQ44: ค | AR44: ง | AS44: ข | AT44: ก | AU44: ง | AV44: ง | AW44: ง | AX44: ก | AY44: ง | AZ44: ก
B45: 31 | C45: ค | D45: ก | E45: ข | F45: ง | G45: ค | H45: ค | I45: ข | J45: ง | K45: ค | L45: ค | M45: ก | N45: ค | O45: ค | P45: ก | Q45: ค | R45: ง | S45: ง | T45: ข | U45: ข | V45: ค | W45: ง | X45: ง | Y45: ข | Z45: ง | AA45: ค | AB45: ก | AC45: ข | AD45: ค | AE45: ข | AF45: ข | AG45: ข | AH45: ข | AI45: ง | AJ45: ก | AK45: ง | AL45: ข | AM45: ก | AN45: ข | AO45: ง | AP45: ก | AQ45: ค | AR45: ง | AS45: ข | AT45: ง | AU45: ค | AV45: ง | AW45: ง | AX45: ก | AY45: ง | AZ45: ง
B46: 32 | C46: ข | D46: ก | E46: ข | F46: ข | G46: ค | H46: ค | I46: ข | J46: ข | K46: ค | L46: ข | M46: ข | N46: ค | O46: ค | P46: ข | Q46: ค | R46: ง | S46: ง | T46: ง | U46: ค | V46: ค | W46: ค | X46: ง | Y46: ก | Z46: ง | AA46: ข | AB46: ค | AC46: ข | AD46: ค | AE46: ก | AF46: ค | AG46: ง | AH46: ข | AI46: ง | AJ46: ค | AK46: ง | AL46: ข | AM46: ง | AN46: ข | AO46: ข | AP46: ง | AQ46: ค | AR46: ง | AS46: ค | AT46: ก | AU46: ข | AV46: ค | AW46: ง | AX46: ก | AY46: ค | AZ46: ค
B47: 33 | C47: ข | D47: ง | E47: ข | F47: ข | G47: ง | H47: ก | I47: ค | J47: ข | K47: ง | L47: ง | M47: ง | N47: ข | O47: ค | P47: ข | Q47: ก | R47: ง | S47: ง | T47: ข | U47: ค | V47: ค | W47: ค | X47: ค | Y47: ก | Z47: ง | AA47: ง | AB47: ข | AC47: ก | AD47: ค | AE47: ง | AF47: ง | AG47: ข | AH47: ข | AI47: ค | AJ47: ก | AK47: ง | AL47: ค | AM47: ค | AN47: ง | AO47: ข | AP47: ง | AQ47: ค | AR47: ง | AS47: ค | AT47: ง | AU47: ก | AV47: ง | AW47: ง | AX47: ก | AY47: ง | AZ47: ค
B48: 34 | C48: ค | D48: ก | E48: ก | F48: ง | G48: ก | H48: ค | I48: ค | J48: ก | K48: ง | L48: ง | M48: ข | N48: ง | O48: ก | P48: ค | Q48: ค | R48: ค | S48: ง | T48: ข | U48: ค | V48: ง | W48: ก | X48: ข | Y48: ก | Z48: ข | AA48: ข | AB48: ง | AC48: ข | AD48: ค | AE48: ก | AF48: ก | AG48: ข | AH48: ข | AI48: ค | AJ48: ง | AK48: ง | AL48: ข | AM48: ก | AN48: ข | AO48: ค | AP48: ค | AQ48: ค | AR48: ข | AS48: ข | AT48: ก | AU48: ข | AV48: ข | AW48: ค | AX48: ก | AY48: ง | AZ48: ค
B49: 35 | C49: ข | D49: ก | E49: ข | F49: ข | G49: ค | H49: ง | I49: ข | J49: ข | K49: ข | L49: ค | M49: ข | N49: ง | O49: ค | P49: ข | Q49: ง | R49: ง | S49: ง | T49: ง | U49: ค | V49: ข | W49: ค | X49: ค | Y49: ก | Z49: ง | AA49: ค | AB49: ค | AC49: ข | AD49: ก | AE49: ข | AF49: ง | AG49: ข | AH49: ข | AI49: ก | AJ49: ง | AK49: ง | AL49: ค | AM49: ก | AN49: ง | AO49: ก | AP49: ง | AQ49: ค | AR49: ง | AS49: ค | AT49: ง | AU49: ก | AV49: ง | AW49: ง | AX49: ก | AY49: ง | AZ49: ค
B50: 36 | C50: ค | D50: ก | E50: ข | F50: ข | G50: ค | H50: ง | I50: ก | J50: ข | K50: ง | L50: ค | M50: ข | N50: ง | O50: ค | P50: ข | Q50: ค | R50: ค | S50: ข | T50: ข | U50: ง | V50: ค | W50: ก | X50: ก | Y50: ข | Z50: ง | AA50: ง | AB50: ง | AC50: ข | AD50: ค | AE50: ข | AF50: ง | AG50: ข | AH50: ข | AI50: ก | AJ50: ก | AK50: ง | AL50: ค | AM50: ก | AN50: ง | AO50: ข | AP50: ง | AQ50: ค | AR50: ง | AS50: ข | AT50: ง | AU50: ก | AV50: ง | AW50: ง | AX50: ก | AY50: ง | AZ50: ค
B51: 37 | C51: ค | D51: ก | E51: ก | F51: ข | G51: ค | H51: ง | I51: ข | J51: ค | K51: ข | L51: ค | M51: ข | N51: ง | O51: ก | P51: ข | Q51: ค | R51: ง | S51: ง | T51: ค | U51: ค | V51: ค | W51: ค | X51: ง | Y51: ก | Z51: ง | AA51: ก | AB51: ค | AC51: ข | AD51: ค | AE51: ก | AF51: ง | AG51: ข | AH51: ข | AI51: ก | AJ51: ก | AK51: ง | AL51: ค | AM51: ก | AN51: ก | AO51: ง | AP51: ก | AQ51: ค | AR51: ง | AS51: ค | AT51: ง | AU51: ก | AV51: ง | AW51: ง | AX51: ก | AY51: ง | AZ51: ค
B52: 38 | C52: ข | D52: ค | E52: ข | F52: ค | G52: ก | H52: ง | I52: ค | J52: ข | K52: ก | L52: ค | M52: ง | N52: ค | O52: ข | P52: ค | Q52: ง | R52: ก | S52: ง | T52: ข | U52: ค | V52: ง | W52: ก | X52: ค | Y52: ข | Z52: ง | AA52: ข | AB52: ง | AC52: ข | AD52: ก | AE52: ข | AF52: ข | AG52: ก | AH52: ค | AI52: ข | AJ52: ค | AK52: ค | AL52: ข | AM52: ก | AN52: ข | AO52: ง | AP52: ข | AQ52: ข | AR52: ข | AS52: ค | AT52: ข | AU52: ค | AV52: ข | AW52: ง | AX52: ง | AY52: ค | AZ52: ค
B53: 39 | C53: ค | D53: ก | E53: ข | F53: ข | G53: ค | H53: ง | I53: ข | J53: ค | K53: ข | L53: ค | M53: ข | N53: ง | O53: ค | P53: ข | Q53: ค | R53: ง | S53: ง | T53: ง | U53: ค | V53: ง | W53: ค | X53: ค | Y53: ก | Z53: ก | AA53: ก | AB53: ค | AC53: ข | AD53: ค | AE53: ก | AF53: ง | AG53: ค | AH53: ข | AI53: ก | AJ53: ก | AK53: ง | AL53: ง | AM53: ก | AN53: ก | AO53: ค | AP53: ก | AQ53: ค | AR53: ง | AS53: ค | AT53: ง | AU53: ก | AV53: ง | AW53: ง | AX53: ก | AY53: ง | AZ53: ค
B54: 40 | C54: ก | D54: ก | E54: ข | F54: ค | G54: ค | H54: ง | I54: ค | J54: ก | K54: ค | L54: ง | M54: ก | N54: ข | O54: ก | P54: ค | Q54: ง | R54: ก | S54: ง | T54: ข | U54: ค | V54: ก | W54: ข | X54: ง | Y54: ข | Z54: ง | AA54: ค | AB54: ข | AC54: ข | AD54: ง | AE54: ข | AF54: ง | AG54: ก | AH54: ค | AI54: ง | AJ54: ค | AK54: ก | AL54: ก | AM54: ง | AN54: ง | AO54: ข | AP54: ง | AQ54: ง | AR54: ง | AS54: ข | AT54: ข | AU54: ข | AV54: ง | AW54: ข | AX54: ค | AY54: ข | AZ54: ก
B55: 41 | C55: ข | D55: ค | E55: ข | F55: ข | G55: ค | H55: ง | I55: ค | J55: ค | K55: ง | L55: ค | M55: ก | N55: ก | O55: ก | P55: ข | Q55: ค | R55: ค | S55: ง | T55: ข | U55: ก | V55: ง | W55: ค | X55: ข | Y55: ค | Z55: ข | AA55: ง | AB55: ก | AC55: ข | AD55: ก | AE55: ค | AF55: ข | AG55: ก | AH55: ข | AI55: ง | AJ55: ค | AK55: ง | AL55: ก | AM55: ก | AN55: ง | AO55: ค | AP55: ง | AQ55: ค | AR55: ง | AS55: ง | AT55: ง | AU55: ก | AV55: ค | AW55: ค | AX55: ก | AY55: ง | AZ55: ค
A2015: เลยบรรทัดนี้ไป เป็นข้อสอบฉบับที่ 2001 แล้วครับ ผมเตรียมวิเคราะห์ไว้แค่ 2000 ฉบับ นะครับ -- ถ้าต้องการมากกว่านี้ ติดต่อ thongjoon@yahoo.com.sg หรือ thongjoon@gmail.com

Sheet Sheet2
G2: ผลการวิเคราะห์ข้อสอบของท่าน
B4: จำนวนข้อสอบ(N) = 41
B6: คำถามข้อที่ | C6: 1 | D6: 2 | E6: 3 | F6: 4 | G6: 5 | H6: 6 | I6: 7 | J6: 8 | K6: 9 | L6: 10 | M6: 11 | N6: 12 | O6: 13 | P6: 14 | Q6: 15 | R6: 16 | S6: 17 | T6: 18 | U6: 19 | V6: 20 | W6: 21 | X6: 22 | Y6: 23 | Z6: 24 | AA6: 25 | AB6: 26 | AC6: 27 | AD6: 28 | AE6: 29 | AF6: 30 | AG6: 31 | AH6: 32 | AI6: 33 | AJ6: 34 | AK6: 35 | AL6: 36 | AM6: 37 | AN6: 38 | AO6: 39 | AP6: 40 | AQ6: 41 | AR6: 42 | AS6: 43 | AT6: 44 | AU6: 45 | AV6: 46 | AW6: 47 | AX6: 48 | AY6: 49 | AZ6: 50
B7: ตอบถูก | C7: 25 | D7: 31 | E7: 35 | F7: 6 | G7: 35 | H7: 24 | I7: 28 | J7: 18 | K7: 13 | L7: 26 | M7: 28 | N7: 13 | O7: 21 | P7: 20 | Q7: 26 | R7: 19 | S7: 34 | T7: 15 | U7: 23 | V7: 15 | W7: 10 | X7: 13 | Y7: 20 | Z7: 22 | AA7: 16 | AB7: 16 | AC7: 30 | AD7: 24 | AE7: 18 | AF7: 20 | AG7: 25 | AH7: 33 | AI7: 2 | AJ7: 11 | AK7: 36 | AL7: 11 | AM7: 22 | AN7: 13 | AO7: 12 | AP7: 29 | AQ7: 36 | AR7: 34 | AS7: 15 | AT7: 24 | AU7: 27 | AV7: 26 | AW7: 22 | AX7: 35 | AY7: 30 | AZ7: 30
B8: ตอบผิด | C8: 16 | D8: 10 | E8: 6 | F8: 35 | G8: 6 | H8: 17 | I8: 13 | J8: 23 | K8: 28 | L8: 15 | M8: 13 | N8: 28 | O8: 20 | P8: 21 | Q8: 15 | R8: 22 | S8: 7 | T8: 26 | U8: 18 | V8: 26 | W8: 31 | X8: 28 | Y8: 21 | Z8: 19 | AA8: 25 | AB8: 25 | AC8: 11 | AD8: 17 | AE8: 23 | AF8: 21 | AG8: 16 | AH8: 8 | AI8: 39 | AJ8: 30 | AK8: 5 | AL8: 30 | AM8: 19 | AN8: 28 | AO8: 29 | AP8: 12 | AQ8: 5 | AR8: 7 | AS8: 26 | AT8: 17 | AU8: 14 | AV8: 15 | AW8: 19 | AX8: 6 | AY8: 11 | AZ8: 11
B9: pi | C9: 0.6097560976 | D9: 0.756097561 | E9: 0.8536585366 | F9: 0.1463414634 | G9: 0.8536585366 | H9: 0.5853658537 | I9: 0.6829268293 | J9: 0.4390243902 | K9: 0.3170731707 | L9: 0.6341463415 | M9: 0.6829268293 | N9: 0.3170731707 | O9: 0.512195122 | P9: 0.487804878 | Q9: 0.6341463415 | R9: 0.4634146341 | S9: 0.8292682927 | T9: 0.3658536585 | U9: 0.5609756098 | V9: 0.3658536585 | W9: 0.243902439 | X9: 0.3170731707 | Y9: 0.487804878 | Z9: 0.5365853659 | AA9: 0.3902439024 | AB9: 0.3902439024 | AC9: 0.7317073171 | AD9: 0.5853658537 | AE9: 0.4390243902 | AF9: 0.487804878 | AG9: 0.6097560976 | AH9: 0.8048780488 | AI9: 0.0487804878 | AJ9: 0.2682926829 | AK9: 0.8780487805 | AL9: 0.2682926829 | AM9: 0.5365853659 | AN9: 0.3170731707 | AO9: 0.2926829268 | AP9: 0.7073170732 | AQ9: 0.8780487805 | AR9: 0.8292682927 | AS9: 0.3658536585 | AT9: 0.5853658537 | AU9: 0.6585365854 | AV9: 0.6341463415 | AW9: 0.5365853659 | AX9: 0.8536585366 | AY9: 0.7317073171 | AZ9: 0.7317073171
B10: qi | C10: 0.3902439024 | D10: 0.243902439 | E10: 0.1463414634 | F10: 0.8536585366 | G10: 0.1463414634 | H10: 0.4146341463 | I10: 0.3170731707 | J10: 0.5609756098 | K10: 0.6829268293 | L10: 0.3658536585 | M10: 0.3170731707 | N10: 0.6829268293 | O10: 0.487804878 | P10: 0.512195122 | Q10: 0.3658536585 | R10: 0.5365853659 | S10: 0.1707317073 | T10: 0.6341463415 | U10: 0.4390243902 | V10: 0.6341463415 | W10: 0.756097561 | X10: 0.6829268293 | Y10: 0.512195122 | Z10: 0.4634146341 | AA10: 0.6097560976 | AB10: 0.6097560976 | AC10: 0.2682926829 | AD10: 0.4146341463 | AE10: 0.5609756098 | AF10: 0.512195122 | AG10: 0.3902439024 | AH10: 0.1951219512 | AI10: 0.9512195122 | AJ10: 0.7317073171 | AK10: 0.1219512195 | AL10: 0.7317073171 | AM10: 0.4634146341 | AN10: 0.6829268293 | AO10: 0.7073170732 | AP10: 0.2926829268 | AQ10: 0.1219512195 | AR10: 0.1707317073 | AS10: 0.6341463415 | AT10: 0.4146341463 | AU10: 0.3414634146 | AV10: 0.3658536585 | AW10: 0.4634146341 | AX10: 0.1463414634 | AY10: 0.2682926829 | AZ10: 0.2682926829
B11: piqi | C11: 0.237953599 | D11: 0.1844140393 | E11: 0.1249256395 | F11: 0.1249256395 | G11: 0.1249256395 | H11: 0.242712671 | I11: 0.2165377751 | J11: 0.246281975 | K11: 0.2165377751 | L11: 0.2320047591 | M11: 0.2165377751 | N11: 0.2165377751 | O11: 0.249851279 | P11: 0.249851279 | Q11: 0.2320047591 | R11: 0.248661511 | S11: 0.1415823914 | T11: 0.2320047591 | U11: 0.246281975 | V11: 0.2320047591 | W11: 0.1844140393 | X11: 0.2165377751 | Y11: 0.249851279 | Z11: 0.248661511 | AA11: 0.237953599 | AB11: 0.237953599 | AC11: 0.1963117192 | AD11: 0.242712671 | AE11: 0.246281975 | AF11: 0.249851279 | AG11: 0.237953599 | AH11: 0.1570493754 | AI11: 0.04640095181 | AJ11: 0.1963117192 | AK11: 0.1070791196 | AL11: 0.1963117192 | AM11: 0.248661511 | AN11: 0.2165377751 | AO11: 0.2070196312 | AP11: 0.2070196312 | AQ11: 0.1070791196 | AR11: 0.1415823914 | AS11: 0.2320047591 | AT11: 0.242712671 | AU11: 0.2248661511 | AV11: 0.2320047591 | AW11: 0.248661511 | AX11: 0.1249256395 | AY11: 0.1963117192 | AZ11: 0.1963117192
B13: ร้อยละการเลือกตัวเลือกแต่ละข้อ
B14: ข้อ | C14: 1 | D14: 2 | E14: 3 | F14: 4 | G14: 5 | H14: 6 | I14: 7 | J14: 8 | K14: 9 | L14: 10 | M14: 11 | N14: 12 | O14: 13 | P14: 14 | Q14: 15 | R14: 16 | S14: 17 | T14: 18 | U14: 19 | V14: 20 | W14: 21 | X14: 22 | Y14: 23 | Z14: 24 | AA14: 25 | AB14: 26 | AC14: 27 | AD14: 28 | AE14: 29 | AF14: 30 | AG14: 31 | AH14: 32 | AI14: 33 | AJ14: 34 | AK14: 35 | AL14: 36 | AM14: 37 | AN14: 38 | AO14: 39 | AP14: 40 | AQ14: 41 | AR14: 42 | AS14: 43 | AT14: 44 | AU14: 45 | AV14: 46 | AW14: 47 | AX14: 48 | AY14: 49 | AZ14: 50
B15: ข้อ ก | C15: 4.87804878 | D15: 75.6097561 | E15: 14.63414634 | F15: 14.63414634 | G15: 4.87804878 | H15: 7.317073171 | I15: 7.317073171 | J15: 19.51219512 | K15: 7.317073171 | L15: 4.87804878 | M15: 21.95121951 | N15: 14.63414634 | O15: 41.46341463 | P15: 24.3902439 | Q15: 14.63414634 | R15: 19.51219512 | S15: 9.756097561 | T15: 2.43902439 | U15: 17.07317073 | V15: 24.3902439 | W15: 7.317073171 | X15: 4.87804878 | Y15: 48.7804878 | Z15: 14.63414634 | AA15: 39.02439024 | AB15: 19.51219512 | AC15: 12.19512195 | AD15: 19.51219512 | AE15: 43.90243902 | AF15: 7.317073171 | AG15: 24.3902439 | AH15: 2.43902439 | AI15: 46.34146341 | AJ15: 26.82926829 | AK15: 4.87804878 | AL15: 36.58536585 | AM15: 53.65853659 | AN15: 31.70731707 | AO15: 14.63414634 | AP15: 21.95121951 | AQ15: 2.43902439 | AR15: 12.19512195 | AS15: 9.756097561 | AT15: 14.63414634 | AU15: 65.85365854 | AV15: 9.756097561 | AW15: 19.51219512 | AX15: 85.36585366 | AY15: 4.87804878 | AZ15: 14.63414634
B16: ข้อ ข | C16: 34.14634146 | D16: 2.43902439 | E16: 85.36585366 | F16: 60.97560976 | G16: 2.43902439 | H16: 9.756097561 | I16: 68.29268293 | J16: 21.95121951 | K16: 31.70731707 | L16: 12.19512195 | M16: 68.29268293 | N16: 39.02439024 | O16: 4.87804878 | P16: 48.7804878 | Q16: 12.19512195 | R16: 7.317073171 | S16: 4.87804878 | T16: 48.7804878 | U16: 17.07317073 | V16: 24.3902439 | W16: 24.3902439 | X16: 31.70731707 | Y16: 21.95121951 | Z16: 24.3902439 | AA16: 26.82926829 | AB16: 21.95121951 | AC16: 73.17073171 | AD16: 7.317073171 | AE16: 24.3902439 | AF16: 9.756097561 | AG16: 60.97560976 | AH16: 80.48780488 | AI16: 4.87804878 | AJ16: 2.43902439 | AK16: 4.87804878 | AL16: 26.82926829 | AM16: 0 | AN16: 14.63414634 | AO16: 31.70731707 | AP16: 2.43902439 | AQ16: 2.43902439 | AR16: 4.87804878 | AS16: 34.14634146 | AT16: 9.756097561 | AU16: 14.63414634 | AV16: 4.87804878 | AW16: 7.317073171 | AX16: 0 | AY16: 14.63414634 | AZ16: 2.43902439
B17: ข้อ ค | C17: 60.97560976 | D17: 12.19512195 | E17: 0 | F17: 7.317073171 | G17: 85.36585366 | H17: 24.3902439 | I17: 24.3902439 | J17: 43.90243902 | K17: 24.3902439 | L17: 63.41463415 | M17: 0 | N17: 14.63414634 | O17: 51.2195122 | P17: 21.95121951 | Q17: 63.41463415 | R17: 26.82926829 | S17: 2.43902439 | T17: 12.19512195 | U17: 56.09756098 | V17: 36.58536585 | W17: 53.65853659 | X17: 31.70731707 | Y17: 26.82926829 | Z17: 7.317073171 | AA17: 14.63414634 | AB17: 39.02439024 | AC17: 14.63414634 | AD17: 58.53658537 | AE17: 19.51219512 | AF17: 34.14634146 | AG17: 9.756097561 | AH17: 7.317073171 | AI17: 14.63414634 | AJ17: 29.26829268 | AK17: 2.43902439 | AL17: 26.82926829 | AM17: 14.63414634 | AN17: 0 | AO17: 24.3902439 | AP17: 4.87804878 | AQ17: 87.80487805 | AR17: 0 | AS17: 36.58536585 | AT17: 17.07317073 | AU17: 12.19512195 | AV17: 21.95121951 | AW17: 19.51219512 | AX17: 7.317073171 | AY17: 7.317073171 | AZ17: 73.17073171
B18: ข้อ ง | C18: 0 | D18: 9.756097561 | E18: 0 | F18: 17.07317073 | G18: 7.317073171 | H18: 58.53658537 | I18: 0 | J18: 14.63414634 | K18: 36.58536585 | L18: 19.51219512 | M18: 9.756097561 | N18: 31.70731707 | O18: 2.43902439 | P18: 4.87804878 | Q18: 9.756097561 | R18: 46.34146341 | S18: 82.92682927 | T18: 36.58536585 | U18: 9.756097561 | V18: 14.63414634 | W18: 14.63414634 | X18: 31.70731707 | Y18: 2.43902439 | Z18: 53.65853659 | AA18: 19.51219512 | AB18: 19.51219512 | AC18: 0 | AD18: 14.63414634 | AE18: 12.19512195 | AF18: 48.7804878 | AG18: 4.87804878 | AH18: 7.317073171 | AI18: 34.14634146 | AJ18: 41.46341463 | AK18: 87.80487805 | AL18: 9.756097561 | AM18: 31.70731707 | AN18: 53.65853659 | AO18: 29.26829268 | AP18: 70.73170732 | AQ18: 7.317073171 | AR18: 82.92682927 | AS18: 19.51219512 | AT18: 58.53658537 | AU18: 7.317073171 | AV18: 63.41463415 | AW18: 53.65853659 | AX18: 7.317073171 | AY18: 73.17073171 | AZ18: 9.756097561
B19: รวม | C19: 100 | D19: 100 | E19: 100 | F19: 100 | G19: 100 | H19: 100 | I19: 100 | J19: 100 | K19: 100 | L19: 100 | M19: 100 | N19: 100 | O19: 100 | P19: 100 | Q19: 100 | R19: 100 | S19: 100 | T19: 100 | U19: 100 | V19: 100 | W19: 100 | X19: 100 | Y19: 100 | Z19: 100 | AA19: 100 | AB19: 100 | AC19: 100 | AD19: 100 | AE19: 100 | AF19: 100 | AG19: 100 | AH19: 97.56097561 | AI19: 100 | AJ19: 100 | AK19: 100 | AL19: 100 | AM19: 100 | AN19: 100 | AO19: 100 | AP19: 100 | AQ19: 100 | AR19: 100 | AS19: 100 | AT19: 100 | AU19: 100 | AV19: 100 | AW19: 100 | AX19: 100 | AY19: 100 | AZ19: 100
B22: IF total (รวม) | C22: 0.6097560976 | D22: 0.756097561 | E22: 0.8536585366 | F22: 0.1463414634 | G22: 0.8536585366 | H22: 0.5853658537 | I22: 0.6829268293 | J22: 0.4390243902 | K22: 0.3170731707 | L22: 0.6341463415 | M22: 0.6829268293 | N22: 0.3170731707 | O22: 0.512195122 | P22: 0.487804878 | Q22: 0.6341463415 | R22: 0.4634146341 | S22: 0.8292682927 | T22: 0.3658536585 | U22: 0.5609756098 | V22: 0.3658536585 | W22: 0.243902439 | X22: 0.3170731707 | Y22: 0.487804878 | Z22: 0.5365853659 | AA22: 0.3902439024 | AB22: 0.3902439024 | AC22: 0.7317073171 | AD22: 0.5853658537 | AE22: 0.4390243902 | AF22: 0.487804878 | AG22: 0.6097560976 | AH22: 0.8048780488 | AI22: 0.0487804878 | AJ22: 0.2682926829 | AK22: 0.8780487805 | AL22: 0.2682926829 | AM22: 0.5365853659 | AN22: 0.3170731707 | AO22: 0.2926829268 | AP22: 0.7073170732 | AQ22: 0.8780487805 | AR22: 0.8292682927 | AS22: 0.3658536585 | AT22: 0.5853658537 | AU22: 0.6585365854 | AV22: 0.6341463415 | AW22: 0.5365853659 | AX22: 0.8536585366 | AY22: 0.7317073171 | AZ22: 0.7317073171
B23: IF Upper (กลุ่มสูง) | C23: 1 | D23: 1.230769231 | E23: 1.076923077 | F23: 0.2307692308 | G23: 1.153846154 | H23: 0.9230769231 | I23: 1.153846154 | J23: 0.6153846154 | K23: 0.6923076923 | L23: 1.153846154 | M23: 0.9230769231 | N23: 0.6923076923 | O23: 0.7692307692 | P23: 0.7692307692 | Q23: 0.6923076923 | R23: 1 | S23: 1.076923077 | T23: 0.7692307692 | U23: 0.8461538462 | V23: 0.6153846154 | W23: 0.3076923077 | X23: 0.6923076923 | Y23: 0.8461538462 | Z23: 0.8461538462 | AA23: 0.8461538462 | AB23: 0.9230769231 | AC23: 1.076923077 | AD23: 1.076923077 | AE23: 0.7692307692 | AF23: 0.7692307692 | AG23: 1 | AH23: 1.153846154 | AI23: 0 | AJ23: 0.6153846154 | AK23: 1.153846154 | AL23: 0.5384615385 | AM23: 1 | AN23: 0.7692307692 | AO23: 0.4615384615 | AP23: 0.8461538462 | AQ23: 1.230769231 | AR23: 1.076923077 | AS23: 0.6153846154 | AT23: 1.076923077 | AU23: 1.230769231 | AV23: 1 | AW23: 0.8461538462 | AX23: 1.230769231 | AY23: 1 | AZ23: 1.153846154
B24: IF Lower (กลุ่มต่ำ) | C24: 0.3846153846 | D24: 0.4615384615 | E24: 0.6923076923 | F24: 0.2307692308 | G24: 0.7692307692 | H24: 0.6153846154 | I24: 0.3076923077 | J24: 0.2307692308 | K24: 0.07692307692 | L24: 0.3846153846 | M24: 0.5384615385 | N24: 0.1538461538 | O24: 0.1538461538 | P24: 0.3846153846 | Q24: 0.7692307692 | R24: 0.07692307692 | S24: 0.8461538462 | T24: 0.07692307692 | U24: 0.3846153846 | V24: 0.1538461538 | W24: 0.2307692308 | X24: 0.07692307692 | Y24: 0.2307692308 | Z24: 0.3076923077 | AA24: 0.1538461538 | AB24: 0.07692307692 | AC24: 0.6923076923 | AD24: 0.2307692308 | AE24: 0.2307692308 | AF24: 0.4615384615 | AG24: 0.2307692308 | AH24: 0.5384615385 | AI24: 0.1538461538 | AJ24: 0 | AK24: 0.7692307692 | AL24: 0 | AM24: 0.3846153846 | AN24: 0 | AO24: 0.3076923077 | AP24: 0.6923076923 | AQ24: 0.6923076923 | AR24: 0.7692307692 | AS24: 0.1538461538 | AT24: 0.3076923077 | AU24: 0.2307692308 | AV24: 0.4615384615 | AW24: 0.3846153846 | AX24: 0.5384615385 | AY24: 0.5384615385 | AZ24: 0.5384615385
B25: ID (อำนาจจำแนก) | C25: 0.6153846154 | D25: 0.7692307692 | E25: 0.3846153846 | F25: 0 | G25: 0.3846153846 | H25: 0.3076923077 | I25: 0.8461538462 | J25: 0.3846153846 | K25: 0.6153846154 | L25: 0.7692307692 | M25: 0.3846153846 | N25: 0.5384615385 | O25: 0.6153846154 | P25: 0.3846153846 | Q25: -0.07692307692 | R25: 0.9230769231 | S25: 0.2307692308 | T25: 0.6923076923 | U25: 0.4615384615 | V25: 0.4615384615 | W25: 0.07692307692 | X25: 0.6153846154 | Y25: 0.6153846154 | Z25: 0.5384615385 | AA25: 0.6923076923 | AB25: 0.8461538462 | AC25: 0.3846153846 | AD25: 0.8461538462 | AE25: 0.5384615385 | AF25: 0.3076923077 | AG25: 0.7692307692 | AH25: 0.6153846154 | AI25: -0.1538461538 | AJ25: 0.6153846154 | AK25: 0.3846153846 | AL25: 0.5384615385 | AM25: 0.6153846154 | AN25: 0.7692307692 | AO25: 0.1538461538 | AP25: 0.1538461538 | AQ25: 0.5384615385 | AR25: 0.3076923077 | AS25: 0.4615384615 | AT25: 0.7692307692 | AU25: 1 | AV25: 0.5384615385 | AW25: 0.4615384615 | AX25: 0.6923076923 | AY25: 0.4615384615 | AZ25: 0.6153846154
B27: Reliability(KR-20) | C27: 0.8706419004
B28: คะแนนเฉลี่ย | C28: 27.24390244
B29: ความแปรปรวน (Variance) | C29: 70.13563355
B30: ความคลาดเคลื่อนฯ(SEM) | C30: 25.22525341

Sheet Sheet3
B3: ข้อ | C3: 1 | D3: 2 | E3: 3 | F3: 4 | G3: 5 | H3: 6 | I3: 7 | J3: 8 | K3: 9 | L3: 10 | M3: 11 | N3: 12 | O3: 13 | P3: 14 | Q3: 15 | R3: 16 | S3: 17 | T3: 18 | U3: 19 | V3: 20 | W3: 21 | X3: 22 | Y3: 23 | Z3: 24 | AA3: 25 | AB3: 26 | AC3: 27 | AD3: 28 | AE3: 29 | AF3: 30 | AG3: 31 | AH3: 32 | AI3: 33 | AJ3: 34 | AK3: 35 | AL3: 36 | AM3: 37 | AN3: 38 | AO3: 39 | AP3: 40 | AQ3: 41 | AR3: 42 | AS3: 43 | AT3: 44 | AU3: 45 | AV3: 46 | AW3: 47 | AX3: 48 | AY3: 49 | AZ3: 50
B4: คำตอบที่ถูก | C4: ค | D4: ก | E4: ข | F4: ก | G4: ค | H4: ง | I4: ข | J4: ค | K4: ข | L4: ค | M4: ข | N4: ง | O4: ค | P4: ข | Q4: ค | R4: ง | S4: ง | T4: ง | U4: ค | V4: ค | W4: ข | X4: ค | Y4: ก | Z4: ง | AA4: ก | AB4: ค | AC4: ข | AD4: ค | AE4: ก | AF4: ง | AG4: ข | AH4: ข | AI4: ข | AJ4: ก | AK4: ง | AL4: ค | AM4: ก | AN4: ก | AO4: ง | AP4: ง | AQ4: ค | AR4: ง | AS4: ค | AT4: ง | AU4: ก | AV4: ง | AW4: ง | AX4: ก | AY4: ง | AZ4: ค
B6: 2. กรอกคำตอบของผู้ทำแบบทดสอบ แต่ละคน (สูงสุด ไม่เกิน 2,000 คน)
B7: ฉบับ\ข้อ | C7: 1 | D7: 2 | E7: 3 | F7: 4 | G7: 5 | H7: 6 | I7: 7 | J7: 8 | K7: 9 | L7: 10 | M7: 11 | N7: 12 | O7: 13 | P7: 14 | Q7: 15 | R7: 16 | S7: 17 | T7: 18 | U7: 19 | V7: 20 | W7: 21 | X7: 22 | Y7: 23 | Z7: 24 | AA7: 25 | AB7: 26 | AC7: 27 | AD7: 28 | AE7: 29 | AF7: 30 | AG7: 31 | AH7: 32 | AI7: 33 | AJ7: 34 | AK7: 35 | AL7: 36 | AM7: 37 | AN7: 38 | AO7: 39 | AP7: 40 | AQ7: 41 | AR7: 42 | AS7: 43 | AT7: 44 | AU7: 45 | AV7: 46 | AW7: 47 | AX7: 48 | AY7: 49 | AZ7: 50
B8: 1 | C8: ข | D8: ข | E8: ข | F8: ข | G8: ง | H8: ง | I8: ข | J8: ข | K8: ง | L8: ก | M8: ข | N8: ข | O8: ค | P8: ค | Q8: ค | R8: ค | S8: ง | T8: ง | U8: ค | V8: ข | W8: ค | X8: ข | Y8: ก | Z8: ค | AA8: ข | AB8: ก | AC8: ข | AD8: ง | AE8: ค | AF8: ง | AG8: ข | AH8: ข | AI8: ง | AJ8: ง | AK8: ง | AL8: ค | AM8: ค | AN8: ง | AO8: ก | AP8: ค | AQ8: ค | AR8: ง | AS8: ข | AT8: ค | AU8: ก | AV8: ง | AW8: ง | AX8: ก | AY8: ง | AZ8: ค
B9: 2 | C9: ค | D9: ก | E9: ข | F9: ง | G9: ค | H9: ง | I9: ค | J9: ค | K9: ค | L9: ค | M9: ข | N9: ง | O9: ค | P9: ก | Q9: ค | R9: ก | S9: ก | T9: ง | U9: ค | V9: ค | W9: ข | X9: ค | Y9: ค | Z9: ง | AA9: ง | AB9: ข | AC9: ข | AD9: ง | AE9: ข | AF9: ง | AG9: ข | AH9: ข | AI9: ก | AJ9: ค | AK9: ข | AL9: ก | AM9: ก | AN9: ก | AO9: ข | AP9: ก | AQ9: ค | AR9: ก | AS9: ก | AT9: ง | AU9: ก | AV9: ก | AW9: ค | AX9: ก | AY9: ข | AZ9: ง
B10: 3 | C10: ค | D10: ก | E10: ข | F10: ข | G10: ค | H10: ง | I10: ข | J10: ง | K10: ง | L10: ค | M10: ข | N10: ข | O10: ก | P10: ข | Q10: ค | R10: ง | S10: ง | T10: ข | U10: ง | V10: ข | W10: ข | X10: ข | Y10: ข | Z10: ข | AA10: ข | AB10: ก | AC10: ก | AD10: ค | AE10: ก | AF10: ง | AG10: ก | AH10: ข | AI10: ง | AJ10: ง | AK10: ง | AL10: ข | AM10: ง | AN10: ง | AO10: ง | AP10: ง | AQ10: ง | AR10: ง | AS10: ข | AT10: ก | AU10: ค | AV10: ก | AW10: ก | AX10: ง | AY10: ก | AZ10: ก
B11: 4 | C11: ข | D11: ค | E11: ก | F11: ข | G11: ค | H11: ค | I11: ก | J11: ง | K11: ก | L11: ง | M11: ข | N11: ก | O11: ค | P11: ง | Q11: ค | R11: ก | S11: ง | T11: ข | U11: ก | V11: ข | W11: ค | X11: ข | Y11: ก | Z11: ง | AA11: ข | AB11: ค | AC11: ก | AD11: ค | AE11: ข | AF11: ง | AG11: ข | AH11: ข | AI11: ง | AJ11: ง | AK11: ง | AL11: ก | AM11: ค | AN11: ง | AO11: ค | AP11: ก | AQ11: ค | AR11: ง | AS11: ง | AT11: ค | AU11: ข | AV11: ง | AW11: ง | AX11: ก | AY11: ข | AZ11: ค
B12: 5 | C12: ค | D12: ก | E12: ข | F12: ข | G12: ค | H12: ง | I12: ก | J12: ข | K12: ค | L12: ค | M12: ง | N12: ง | O12: ก | P12: ก | Q12: ค | R12: ง | S12: ง | T12: ข | U12: ค | V12: ง | W12: ค | X12: ค | Y12: ก | Z12: ง | AA12: ค | AB12: ง | AC12: ค | AD12: ก | AE12: ง | AF12: ก | AG12: ข | AH12: ข | AI12: ก | AJ12: ก | AK12: ง | AL12: ค | AM12: ก | AN12: ง | AO12: ข | AP12: ง | AQ12: ค | AR12: ง | AS12: ข | AT12: ค | AU12: ข | AV12: ง | AW12: ก | AX12: ก | AY12: ง | AZ12: ค
B13: 6 | C13: ก | D13: ก | E13: ข | F13: ค | G13: ค | H13: ง | I13: ค | J13: ก | K13: ค | L13: ง | M13: ก | N13: ข | O13: ก | P13: ค | Q13: ง | R13: ก | S13: ง | T13: ข | U13: ค | V13: ก | W13: ข | X13: ง | Y13: ข | Z13: ง | AA13: ค | AB13: ข | AC13: ข | AD13: ง | AE13: ข | AF13: ง | AG13: ก | AH13: ค | AI13: ง | AJ13: ค | AK13: ก | AL13: ก | AM13: ง | AN13: ง | AO13: ข | AP13: ง | AQ13: ง | AR13: ง | AS13: ข | AT13: ข | AU13: ข | AV13: ง | AW13: ข | AX13: ค | AY13: ข | AZ13: ก
B14: 7 | C14: ค | D14: ก | E14: ข | F14: ข | G14: ค | H14: ก | I14: ข | J14: ก | K14: ง | L14: ค | M14: ข | N14: ข | O14: ก | P14: ข | Q14: ข | R14: ง | S14: ง | T14: ง | U14: ก | V14: ค | W14: ง | X14: ข | Y14: ก | Z14: ก | AA14: ก | AB14: ค | AC14: ค | AD14: ค | AE14: ง | AF14: ง | AG14: ข | AH14: ข | AI14: ก | AJ14: ค | AK14: ง | AL14: ก | AM14: ก | AN14: ก | AO14: ข | AP14: ง | AQ14: ค | AR14: ง | AS14: ก | AT14: ง | AU14: ก | AV14: ง | AW14: ก | AX14: ก | AY14: ก | AZ14: ข
B15: 8 | C15: ค | D15: ก | E15: ข | F15: ข | G15: ค | H15: ง | I15: ข | J15: ค | K15: ข | L15: ค | M15: ข | N15: ง | O15: ค | P15: ข | Q15: ค | R15: ง | S15: ง | T15: ง | U15: ค | V15: ค | W15: ง | X15: ค | Y15: ก | Z15: ง | AA15: ก | AB15: ค | AC15: ข | AD15: ค | AE15: ก | AF15: ง | AG15: ข | AH15: ข | AI15: ค | AJ15: ก | AK15: ง | AL15: ค | AM15: ก | AN15: ก | AO15: ง | AP15: ก | AQ15: ค | AR15: ง | AS15: ค | AT15: ง | AU15: ก | AV15: ง | AW15: ง | AX15: ก | AY15: ง | AZ15: ค
B16: 9 | C16: ค | D16: ก | E16: ข | F16: ข | G16: ค | H16: ค | I16: ข | J16: ค | K16: ค | L16: ค | M16: ข | N16: ก | O16: ค | P16: ข | Q16: ข | R16: ค | S16: ก | T16: ข | U16: ค | V16: ข | W16: ง | X16: ข | Y16: ข | Z16: ก | AA16: ก | AB16: ข | AC16: ค | AD16: ก | AE16: ข | AF16: ง | AG16: ข | AH16: ช | AI16: ก | AJ16: ง | AK16: ง | AL16: ข | AM16: ค | AN16: ง | AO16: ข | AP16: ง | AQ16: ค | AR16: ง | AS16: ค | AT16: ง | AU16: ก | AV16: ง | AW16: ง | AX16: ก | AY16: ง | AZ16: ค
B17: 10 | C17: ค | D17: ง | E17: ก | F17: ข | G17: ค | H17: ง | I17: ค | J17: ก | K17: ง | L17: ง | M17: ข | N17: ก | O17: ค | P17: ง | Q17: ค | R17: ค | S17: ง | T17: ข | U17: ก | V17: ข | W17: ค | X17: ก | Y17: ค | Z17: ข | AA17: ง | AB17: ข | AC17: ก | AD17: ก | AE17: ก | AF17: ก | AG17: ค | AH17: ง | AI17: ง | AJ17: ง | AK17: ง | AL17: ง | AM17: ง | AN17: ง | AO17: ง | AP17: ง | AQ17: ค | AR17: ง | AS17: ค | AT17: ง | AU17: ก | AV17: ง | AW17: ง | AX17: ง | AY17: ง | AZ17: ค
B18: 11 | C18: ค | D18: ก | E18: ข | F18: ก | G18: ง | H18: ง | I18: ข | J18: ก | K18: ง | L18: ค | M18: ข | N18: ข | O18: ก | P18: ค | Q18: ข | R18: ง | S18: ง | T18: ง | U18: ก | V18: ค | W18: ง | X18: ข | Y18: ค | Z18: ก | AA18: ข | AB18: ค | AC18: ข | AD18: ค | AE18: ค | AF18: ค | AG18: ข | AH18: ข | AI18: ก | AJ18: ง | AK18: ง | AL18: ก | AM18: ก | AN18: ก | AO18: ง | AP18: ง | AQ18: ค | AR18: ง | AS18: ข | AT18: ง | AU18: ก | AV18: ง | AW18: ง | AX18: ก | AY18: ข | AZ18: ค
B19: 12 | C19: ค | D19: ก | E19: ข | F19: ง | G19: ค | H19: ก | I19: ข | J19: ค | K19: ค | L19: ค | M19: ข | N19: ก | O19: ค | P19: ข | Q19: ค | R19: ก | S19: ก | T19: ง | U19: ข | V19: ค | W19: ค | X19: ข | Y19: ค | Z19: ข | AA19: ค | AB19: ก | AC19: ค | AD19: ค | AE19: ก | AF19: ค | AG19: ข | AH19: ข | AI19: ก | AJ19: ง | AK19: ง | AL19: ค | AM19: ง | AN19: ง | AO19: ข | AP19: ง | AQ19: ก | AR19: ก | AS19: ข | AT19: ก | AU19: ง | AV19: ง | AW19: ง | AX19: ก | AY19: ง | AZ19: ง
B20: 13 | C20: ค | D20: ก | E20: ข | F20: ข | G20: ค | H20: ค | I20: ข | J20: ค | K20: ข | L20: ข | M20: ข | N20: ข | O20: ก | P20: ค | Q20: ก | R20: ค | S20: ง | T20: ข | U20: ข | V20: ก | W20: ข | X20: ง | Y20: ก | Z20: ง | AA20: ข | AB20: ค | AC20: ค | AD20: ค | AE20: ก | AF20: ค | AG20: ข | AH20: ข | AI20: ก | AJ20: ง | AK20: ง | AL20: ก | AM20: ง | AN20: ก | AO20: ก | AP20: ง | AQ20: ค | AR20: ง | AS20: ค | AT20: ค | AU20: ก | AV20: ค | AW20: ก | AX20: ก | AY20: ง | AZ20: ค
B21: 14 | C21: ค | D21: ก | E21: ข | F21: ง | G21: ค | H21: ง | I21: ข | J21: ค | K21: ข | L21: ข | M21: ข | N21: ข | O21: ค | P21: ข | Q21: ก | R21: ค | S21: ง | T21: ค | U21: ข | V21: ข | W21: ข | X21: ง | Y21: ก | Z21: ง | AA21: ข | AB21: ง | AC21: ข | AD21: ค | AE21: ก | AF21: ค | AG21: ข | AH21: ข | AI21: ก | AJ21: ค | AK21: ง | AL21: ก | AM21: ง | AN21: ก | AO21: ก | AP21: ง | AQ21: ค | AR21: ง | AS21: ค | AT21: ค | AU21: ก | AV21: ค | AW21: ก | AX21: ก | AY21: ง | AZ21: ค
B22: 15 | C22: ค | D22: ก | E22: ข | F22: ก | G22: ค | H22: ข | I22: ข | J22: ก | K22: ค | L22: ค | M22: ก | N22: ง | O22: ค | P22: ก | Q22: ข | R22: ง | S22: ก | T22: ก | U22: ค | V22: ค | W22: ข | X22: ค | Y22: ค | Z22: ง | AA22: ก | AB22: ค | AC22: ค | AD22: ค | AE22: ก | AF22: ค | AG22: ก | AH22: ข | AI22: ง | AJ22: ก | AK22: ง | AL22: ข | AM22: ก | AN22: ง | AO22: ค | AP22: ง | AQ22: ค | AR22: ง | AS22: ง | AT22: ง | AU22: ก | AV22: ค | AW22: ค | AX22: ก | AY22: ง | AZ22: ค
B23: 16 | C23: ค | D23: ก | E23: ก | F23: ข | G23: ค | H23: ง | I23: ข | J23: ค | K23: ข | L23: ค | M23: ข | N23: ง | O23: ก | P23: ข | Q23: ค | R23: ง | S23: ง | T23: ง | U23: ค | V23: ค | W23: ค | X23: ค | Y23: ก | Z23: ง | AA23: ก | AB23: ค | AC23: ข | AD23: ค | AE23: ก | AF23: ง | AG23: ข | AH23: ข | AI23: ก | AJ23: ก | AK23: ง | AL23: ค | AM23: ก | AN23: ก | AO23: ง | AP23: ก | AQ23: ค | AR23: ง | AS23: ค | AT23: ง | AU23: ก | AV23: ง | AW23: ง | AX23: ก | AY23: ง | AZ23: ค
B24: 17 | C24: ข | D24: ก | E24: ข | F24: ข | G24: ค | H24: ง | I24: ข | J24: ง | K24: ข | L24: ค | M24: ก | N24: ข | O24: ค | P24: ก | Q24: ข | R24: ง | S24: ง | T24: ง | U24: ค | V24: ก | W24: ข | X24: ค | Y24: ก | Z24: ง | AA24: ก | AB24: ง | AC24: ข | AD24: ง | AE24: ค | AF24: ค | AG24: ข | AH24: ข | AI24: ค | AJ24: ง | AK24: ง | AL24: ง | AM24: ง | AN24: ก | AO24: ง | AP24: ง | AQ24: ค | AR24: ง | AS24: ง | AT24: ค | AU24: ก | AV24: ง | AW24: ง | AX24: ก | AY24: ค | AZ24: ค
B25: 18 | C25: ข | D25: ง | E25: ข | F25: ก | G25: ค | H25: ค | I25: ข | J25: ง | K25: ก | L25: ก | M25: ก | N25: ค | O25: ง | P25: ก | Q25: ค | R25: ก | S25: ค | T25: ข | U25: ง | V25: ก | W25: ค | X25: ง | Y25: ค | Z25: ข | AA25: ก | AB25: ก | AC25: ข | AD25: ข | AE25: ง | AF25: ง | AG25: ข | AH25: ข | AI25: ค | AJ25: ง | AK25: ง | AL25: ข | AM25: ก | AN25: ข | AO25: ข | AP25: ง | AQ25: ค | AR25: ก | AS25: ข | AT25: ง | AU25: ค | AV25: ก | AW25: ข | AX25: ค | AY25: ข | AZ25: ง
B26: 19 | C26: ค | D26: ก | E26: ข | F26: ข | G26: ค | H26: ง | I26: ข | J26: ค | K26: ข | L26: ค | M26: ข | N26: ง | O26: ค | P26: ข | Q26: ค | R26: ง | S26: ง | T26: ง | U26: ค | V26: ง | W26: ค | X26: ค | Y26: ก | Z26: ก | AA26: ก | AB26: ค | AC26: ข | AD26: ค | AE26: ก | AF26: ง | AG26: ข | AH26: ข | AI26: ก | AJ26: ก | AK26: ง | AL26: ง | AM26: ก | AN26: ก | AO26: ค | AP26: ก | AQ26: ค | AR26: ง | AS26: ค | AT26: ง | AU26: ก | AV26: ง | AW26: ง | AX26: ก | AY26: ง | AZ26: ค
B27: 20 | C27: ค | D27: ก | E27: ข | F27: ก | G27: ค | H27: ข | I27: ข | J27: ก | K27: ค | L27: ค | M27: ก | N27: ง | O27: ค | P27: ก | Q27: ค | R27: ง | S27: ง | T27: ค | U27: ค | V27: ก | W27: ค | X27: ข | Y27: ค | Z27: ข | AA27: ก | AB27: ค | AC27: ข | AD27: ค | AE27: ก | AF27: ค | AG27: ก | AH27: ข | AI27: ง | AJ27: ค | AK27: ง | AL27: ข | AM27: ก | AN27: ง | AO27: ค | AP27: ง | AQ27: ค | AR27: ง | AS27: ง | AT27: ง | AU27: ก | AV27: ค | AW27: ค | AX27: ก | AY27: ง | AZ27: ค
B28: 21 | C28: ข | D28: ก | E28: ข | F28: ง | G28: ค | H28: ง | I28: ข | J28: ค | K28: ข | L28: ค | M28: ข | N28: ข | O28: ค | P28: ค | Q28: ค | R28: ง | S28: ง | T28: ง | U28: ค | V28: ค | W28: ค | X28: ค | Y28: ก | Z28: ง | AA28: ก | AB28: ค | AC28: ข | AD28: ค | AE28: ก | AF28: ง | AG28: ข | AH28: ข | AI28: ก | AJ28: ก | AK28: ง | AL28: ค | AM28: ก | AN28: ก | AO28: ก | AP28: ง | AQ28: ค | AR28: ก | AS28: ง | AT28: ง | AU28: ก | AV28: ง | AW28: ค | AX28: ก | AY28: ง | AZ28: ค
B29: 22 | C29: ค | D29: ก | E29: ข | F29: ก | G29: ค | H29: ค | I29: ข | J29: ค | K29: ข | L29: ค | M29: ข | N29: ข | O29: ข | P29: ก | Q29: ค | R29: ข | S29: ข | T29: ง | U29: ง | V29: ก | W29: ค | X29: ง | Y29: ค | Z29: ค | AA29: ง | AB29: ข | AC29: ข | AD29: ง | AE29: ค | AF29: ค | AG29: ก | AH29: ก | AI29: ค | AJ29: ง | AK29: ง | AL29: ก | AM29: ง | AN29: ง | AO29: ข | AP29: ง | AQ29: ค | AR29: ง | AS29: ข | AT29: ก | AU29: ง | AV29: ก | AW29: ก | AX29: ก | AY29: ง | AZ29: ก
B30: 23 | C30: ค | D30: ก | E30: ข | F30: ข | G30: ค | H30: ค | I30: ข | J30: ค | K30: ข | L30: ข | M30: ข | N30: ข | O30: ก | P30: ค | Q30: ก | R30: ค | S30: ง | T30: ข | U30: ข | V30: ก | W30: ข | X30: ง | Y30: ก | Z30: ง | AA30: ข | AB30: ง | AC30: ข | AD30: ค | AE30: ก | AF30: ค | AG30: ข | AH30: ข | AI30: ก | AJ30: ง | AK30: ง | AL30: ก | AM30: ค | AN30: ข | AO30: ก | AP30: ง | AQ30: ค | AR30: ง | AS30: ข | AT30: ค | AU30: ก | AV30: ค | AW30: ก | AX30: ก | AY30: ง | AZ30: ค
B31: 24 | C31: ข | D31: ค | E31: ข | F31: ข | G31: ค | H31: ข | I31: ข | J31: ค | K31: ง | L31: ข | M31: ข | N31: ข | O31: ค | P31: ก | Q31: ค | R31: ง | S31: ง | T31: ค | U31: ค | V31: ก | W31: ค | X31: ข | Y31: ค | Z31: ข | AA31: ก | AB31: ข | AC31: ข | AD31: ค | AE31: ก | AF31: ค | AG31: ก | AH31: ข | AI31: ง | AJ31: ค | AK31: ง | AL31: ก | AM31: ก | AN31: ง | AO31: ค | AP31: ง | AQ31: ค | AR31: ง | AS31: ง | AT31: ง | AU31: ก | AV31: ค | AW31: ค | AX31: ก | AY31: ง | AZ31: ค
B32: 25 | C32: ค | D32: ก | E32: ข | F32: ข | G32: ค | H32: ค | I32: ข | J32: ค | K32: ง | L32: ค | M32: ข | N32: ข | O32: ก | P32: ข | Q32: ก | R32: ข | S32: ง | T32: ง | U32: ข | V32: ข | W32: ข | X32: ง | Y32: ก | Z32: ง | AA32: ข | AB32: ง | AC32: ข | AD32: ค | AE32: ก | AF32: ค | AG32: ข | AH32: ข | AI32: ก | AJ32: ค | AK32: ข | AL32: ก | AM32: ค | AN32: ง | AO32: ข | AP32: ง | AQ32: ค | AR32: ง | AS32: ก | AT32: ง | AU32: ก | AV32: ง | AW32: ง | AX32: ก | AY32: ง | AZ32: ค
B33: 26 | C33: ข | D33: ง | E33: ข | F33: ข | G33: ข | H33: ข | I33: ข | J33: ง | K33: ง | L33: ค | M33: ข | N33: ง | O33: ก | P33: ข | Q33: ค | R33: ข | S33: ง | T33: ข | U33: ค | V33: ก | W33: ค | X33: ข | Y33: ก | Z33: ค | AA33: ก | AB33: ข | AC33: ก | AD33: ข | AE33: ง | AF33: ค | AG33: ง | AH33: ข | AI33: ข | AJ33: ง | AK33: ง | AL33: ข | AM33: ง | AN33: ง | AO33: ง | AP33: ง | AQ33: ค | AR33: ง | AS33: ก | AT33: ข | AU33: ค | AV33: ง | AW33: ง | AX33: ก | AY33: ง | AZ33: ค
B34: 27 | C34: ค | D34: ก | E34: ข | F34: ข | G34: ค | H34: ง | I34: ข | J34: ข | K34: ง | L34: ค | M34: ง | N34: ข | O34: ก | P34: ก | Q34: ค | R34: ง | S34: ง | T34: ข | U34: ค | V34: ข | W34: ค | X34: ค | Y34: ง | Z34: ง | AA34: ก | AB34: ค | AC34: ข | AD34: ค | AE34: ข | AF34: ง | AG34: ข | AH34: ง | AI34: ง | AJ34: ง | AK34: ง | AL34: ค | AM34: ก | AN34: ง | AO34: ง | AP34: ง | AQ34: ค | AR34: ก | AS34: ค | AT34: ง | AU34: ก | AV34: ง | AW34: ง | AX34: ก | AY34: ง | AZ34: ค
B35: 28 | C35: ข | D35: ค | E35: ข | F35: ข | G35: ค | H35: ง | I35: ค | J35: ค | K35: ง | L35: ง | M35: ก | N35: ก | O35: ก | P35: ข | Q35: ค | R35: ค | S35: ง | T35: ข | U35: ก | V35: ค | W35: ค | X35: ข | Y35: ค | Z35: ข | AA35: ง | AB35: ก | AC35: ข | AD35: ก | AE35: ค | AF35: ข | AG35: ก | AH35: ข | AI35: ง | AJ35: ค | AK35: ง | AL35: ก | AM35: ก | AN35: ง | AO35: ค | AP35: ง | AQ35: ค | AR35: ง | AS35: ง | AT35: ง | AU35: ก | AV35: ค | AW35: ค | AX35: ก | AY35: ง | AZ35: ค
B36: 29 | C36: ข | D36: ก | E36: ข | F36: ง | G36: ค | H36: ง | I36: ข | J36: ค | K36: ข | L36: ค | M36: ข | N36: ค | O36: ค | P36: ข | Q36: ก | R36: ก | S36: ง | T36: ค | U36: ข | V36: ข | W36: ค | X36: ง | Y36: ข | Z36: ก | AA36: ก | AB36: ค | AC36: ข | AD36: ก | AE36: ค | AF36: ค | AG36: ค | AH36: ข | AI36: ก | AJ36: ข | AK36: ง | AL36: ก | AM36: ง | AN36: ก | AO36: ง | AP36: ง | AQ36: ค | AR36: ง | AS36: ค | AT36: ง | AU36: ก | AV36: ง | AW36: ก | AX36: ก | AY36: ง | AZ36: ก
B37: 30 | C37: ค | D37: ก | E37: ก | F37: ก | G37: ค | H37: ง | I37: ค | J37: ข | K37: ง | L37: ง | M37: ข | N37: ค | O37: ก | P37: ข | Q37: ค | R37: ค | S37: ง | T37: ข | U37: ก | V37: ค | W37: ง | X37: ง | Y37: ข | Z37: ข | AA37: ง | AB37: ก | AC37: ข | AD37: ข | AE37: ค | AF37: ง | AG37: ค | AH37: ง | AI37: ก | AJ37: ง | AK37: ง | AL37: ข | AM37: ง | AN37: ง | AO37: ค | AP37: ก | AQ37: ค | AR37: ง | AS37: ข | AT37: ก | AU37: ง | AV37: ง | AW37: ง | AX37: ก | AY37: ง | AZ37: ก
B38: 31 | C38: ค | D38: ก | E38: ข | F38: ง | G38: ค | H38: ค | I38: ข | J38: ง | K38: ค | L38: ค | M38: ก | N38: ค | O38: ค | P38: ก | Q38: ค | R38: ง | S38: ง | T38: ข | U38: ข | V38: ค | W38: ง | X38: ง | Y38: ข | Z38: ง | AA38: ค | AB38: ก | AC38: ข | AD38: ค | AE38: ข | AF38: ข | AG38: ข | AH38: ข | AI38: ง | AJ38: ก | AK38: ง | AL38: ข | AM38: ก | AN38: ข | AO38: ง | AP38: ก | AQ38: ค | AR38: ง | AS38: ข | AT38: ง | AU38: ค | AV38: ง | AW38: ง | AX38: ก | AY38: ง | AZ38: ง
B39: 32 | C39: ข | D39: ก | E39: ข | F39: ข | G39: ค | H39: ค | I39: ข | J39: ข | K39: ค | L39: ข | M39: ข | N39: ค | O39: ค | P39: ข | Q39: ค | R39: ง | S39: ง | T39: ง | U39: ค | V39: ค | W39: ค | X39: ง | Y39: ก | Z39: ง | AA39: ข | AB39: ค | AC39: ข | AD39: ค | AE39: ก | AF39: ค | AG39: ง | AH39: ข | AI39: ง | AJ39: ค | AK39: ง | AL39: ข | AM39: ง | AN39: ข | AO39: ข | AP39: ง | AQ39: ค | AR39: ง | AS39: ค | AT39: ก | AU39: ข | AV39: ค | AW39: ง | AX39: ก | AY39: ค | AZ39: ค
B40: 33 | C40: ข | D40: ง | E40: ข | F40: ข | G40: ง | H40: ก | I40: ค | J40: ข | K40: ง | L40: ง | M40: ง | N40: ข | O40: ค | P40: ข | Q40: ก | R40: ง | S40: ง | T40: ข | U40: ค | V40: ค | W40: ค | X40: ค | Y40: ก | Z40: ง | AA40: ง | AB40: ข | AC40: ก | AD40: ค | AE40: ง | AF40: ง | AG40: ข | AH40: ข | AI40: ค | AJ40: ก | AK40: ง | AL40: ค | AM40: ค | AN40: ง | AO40: ข | AP40: ง | AQ40: ค | AR40: ง | AS40: ค | AT40: ง | AU40: ก | AV40: ง | AW40: ง | AX40: ก | AY40: ง | AZ40: ค
B41: 34 | C41: ค | D41: ก | E41: ก | F41: ง | G41: ก | H41: ค | I41: ค | J41: ก | K41: ง | L41: ง | M41: ข | N41: ง | O41: ก | P41: ค | Q41: ค | R41: ค | S41: ง | T41: ข | U41: ค | V41: ง | W41: ก | X41: ข | Y41: ก | Z41: ข | AA41: ข | AB41: ง | AC41: ข | AD41: ค | AE41: ก | AF41: ก | AG41: ข | AH41: ข | AI41: ค | AJ41: ง | AK41: ง | AL41: ข | AM41: ก | AN41: ข | AO41: ค | AP41: ค | AQ41: ค | AR41: ข | AS41: ข | AT41: ก | AU41: ข | AV41: ข | AW41: ค | AX41: ก | AY41: ง | AZ41: ค
B42: 35 | C42: ข | D42: ก | E42: ข | F42: ข | G42: ค | H42: ง | I42: ข | J42: ข | K42: ข | L42: ค | M42: ข | N42: ง | O42: ค | P42: ข | Q42: ง | R42: ง | S42: ง | T42: ง | U42: ค | V42: ข | W42: ค | X42: ค | Y42: ก | Z42: ง | AA42: ค | AB42: ค | AC42: ข | AD42: ก | AE42: ข | AF42: ง | AG42: ข | AH42: ข | AI42: ก | AJ42: ง | AK42: ง | AL42: ค | AM42: ก | AN42: ง | AO42: ก | AP42: ง | AQ42: ค | AR42: ง | AS42: ค | AT42: ง | AU42: ก | AV42: ง | AW42: ง | AX42: ก | AY42: ง | AZ42: ค
B43: 36 | C43: ค | D43: ก | E43: ข | F43: ข | G43: ค | H43: ง | I43: ก | J43: ข | K43: ง | L43: ค | M43: ข | N43: ง | O43: ค | P43: ข | Q43: ค | R43: ค | S43: ข | T43: ข | U43: ง | V43: ค | W43: ก | X43: ก | Y43: ข | Z43: ง | AA43: ง | AB43: ง | AC43: ข | AD43: ค | AE43: ข | AF43: ง | AG43: ข | AH43: ข | AI43: ก | AJ43: ก | AK43: ง | AL43: ค | AM43: ก | AN43: ง | AO43: ข | AP43: ง | AQ43: ค | AR43: ง | AS43: ข | AT43: ง | AU43: ก | AV43: ง | AW43: ง | AX43: ก | AY43: ง | AZ43: ค
B44: 37 | C44: ค | D44: ก | E44: ก | F44: ข | G44: ค | H44: ง | I44: ข | J44: ค | K44: ข | L44: ค | M44: ข | N44: ง | O44: ก | P44: ข | Q44: ค | R44: ง | S44: ง | T44: ค | U44: ค | V44: ค | W44: ค | X44: ง | Y44: ก | Z44: ง | AA44: ก | AB44: ค | AC44: ข | AD44: ค | AE44: ก | AF44: ง | AG44: ข | AH44: ข | AI44: ก | AJ44: ก | AK44: ง | AL44: ค | AM44: ก | AN44: ก | AO44: ง | AP44: ก | AQ44: ค | AR44: ง | AS44: ค | AT44: ง | AU44: ก | AV44: ง | AW44: ง | AX44: ก | AY44: ง | AZ44: ค
B45: 38 | C45: ข | D45: ค | E45: ข | F45: ค | G45: ก | H45: ง | I45: ค | J45: ข | K45: ก | L45: ค | M45: ง | N45: ค | O45: ข | P45: ค | Q45: ง | R45: ก | S45: ง | T45: ข | U45: ค | V45: ง | W45: ก | X45: ค | Y45: ข | Z45: ง | AA45: ข | AB45: ง | AC45: ข | AD45: ก | AE45: ข | AF45: ข | AG45: ก | AH45: ค | AI45: ข | AJ45: ค | AK45: ค | AL45: ข | AM45: ก | AN45: ข | AO45: ง | AP45: ข | AQ45: ข | AR45: ข | AS45: ค | AT45: ข | AU45: ค | AV45: ข | AW45: ง | AX45: ง | AY45: ค | AZ45: ค
B46: 39 | C46: ค | D46: ก | E46: ข | F46: ข | G46: ค | H46: ง | I46: ข | J46: ค | K46: ข | L46: ค | M46: ข | N46: ง | O46: ค | P46: ข | Q46: ค | R46: ง | S46: ง | T46: ง | U46: ค | V46: ง | W46: ค | X46: ค | Y46: ก | Z46: ก | AA46: ก | AB46: ค | AC46: ข | AD46: ค | AE46: ก | AF46: ง | AG46: ค | AH46: ข | AI46: ก | AJ46: ก | AK46: ง | AL46: ง | AM46: ก | AN46: ก | AO46: ค | AP46: ก | AQ46: ค | AR46: ง | AS46: ค | AT46: ง | AU46: ก | AV46: ง | AW46: ง | AX46: ก | AY46: ง | AZ46: ค
B47: 40 | C47: ก | D47: ก | E47: ข | F47: ค | G47: ค | H47: ง | I47: ค | J47: ก | K47: ค | L47: ง | M47: ก | N47: ข | O47: ก | P47: ค | Q47: ง | R47: ก | S47: ง | T47: ข | U47: ค | V47: ก | W47: ข | X47: ง | Y47: ข | Z47: ง | AA47: ค | AB47: ข | AC47: ข | AD47: ง | AE47: ข | AF47: ง | AG47: ก | AH47: ค | AI47: ง | AJ47: ค | AK47: ก | AL47: ก | AM47: ง | AN47: ง | AO47: ข | AP47: ง | AQ47: ง | AR47: ง | AS47: ข | AT47: ข | AU47: ข | AV47: ง | AW47: ข | AX47: ค | AY47: ข | AZ47: ก
B48: 41 | C48: ข | D48: ค | E48: ข | F48: ข | G48: ค | H48: ง | I48: ค | J48: ค | K48: ง | L48: ค | M48: ก | N48: ก | O48: ก | P48: ข | Q48: ค | R48: ค | S48: ง | T48: ข | U48: ก | V48: ง | W48: ค | X48: ข | Y48: ค | Z48: ข | AA48: ง | AB48: ก | AC48: ข | AD48: ก | AE48: ค | AF48: ข | AG48: ก | AH48: ข | AI48: ง | AJ48: ค | AK48: ง | AL48: ก | AM48: ก | AN48: ง | AO48: ค | AP48: ง | AQ48: ค | AR48: ง | AS48: ง | AT48: ง | AU48: ก | AV48: ค | AW48: ค | AX48: ก | AY48: ง | AZ48: ค
B50: ผลการตรวจและเรียงคะแนนจากมากไปหาน้อย
B51: ฉบับที่\ข้อที่ | C51: 1 | D51: 2 | E51: 3 | F51: 4 | G51: 5 | H51: 6 | I51: 7 | J51: 8 | K51: 9 | L51: 10 | M51: 11 | N51: 12 | O51: 13 | P51: 14 | Q51: 15 | R51: 16 | S51: 17 | T51: 18 | U51: 19 | V51: 20 | W51: 21 | X51: 22 | Y51: 23 | Z51: 24 | AA51: 25 | AB51: 26 | AC51: 27 | AD51: 28 | AE51: 29 | AF51: 30 | AG51: 31 | AH51: 32 | AI51: 33 | AJ51: 34 | AK51: 35 | AL51: 36 | AM51: 37 | AN51: 38 | AO51: 39 | AP51: 40 | AQ51: 41 | AR51: 42 | AS51: 43 | AT51: 44 | AU51: 45 | AV51: 46 | AW51: 47 | AX51: 48 | AY51: 49 | AZ51: 50 | BA51: X | BB51: X2
B52: 8 | C52: 1 | D52: 1 | E52: 1 | F52: 0 | G52: 1 | H52: 1 | I52: 1 | J52: 1 | K52: 1 | L52: 1 | M52: 1 | N52: 1 | O52: 1 | P52: 1 | Q52: 1 | R52: 1 | S52: 1 | T52: 1 | U52: 1 | V52: 1 | W52: 0 | X52: 1 | Y52: 1 | Z52: 1 | AA52: 1 | AB52: 1 | AC52: 1 | AD52: 1 | AE52: 1 | AF52: 1 | AG52: 1 | AH52: 1 | AI52: 0 | AJ52: 1 | AK52: 1 | AL52: 1 | AM52: 1 | AN52: 1 | AO52: 1 | AP52: 0 | AQ52: 1 | AR52: 1 | AS52: 1 | AT52: 1 | AU52: 1 | AV52: 1 | AW52: 1 | AX52: 1 | AY52: 1 | AZ52: 1 | BA52: 46 | BB52: =BA52^2 -> 2116
B53: 16 | C53: 1 | D53: 1 | E53: 0 | F53: 0 | G53: 1 | H53: 1 | I53: 1 | J53: 1 | K53: 1 | L53: 1 | M53: 1 | N53: 1 | O53: 0 | P53: 1 | Q53: 1 | R53: 1 | S53: 1 | T53: 1 | U53: 1 | V53: 1 | W53: 0 | X53: 1 | Y53: 1 | Z53: 1 | AA53: 1 | AB53: 1 | AC53: 1 | AD53: 1 | AE53: 1 | AF53: 1 | AG53: 1 | AH53: 1 | AI53: 0 | AJ53: 1 | AK53: 1 | AL53: 1 | AM53: 1 | AN53: 1 | AO53: 1 | AP53: 0 | AQ53: 1 | AR53: 1 | AS53: 1 | AT53: 1 | AU53: 1 | AV53: 1 | AW53: 1 | AX53: 1 | AY53: 1 | AZ53: 1 | BA53: 44 | BB53: =BA53^2 -> 1936
B54: 19 | C54: 1 | D54: 1 | E54: 1 | F54: 0 | G54: 1 | H54: 1 | I54: 1 | J54: 1 | K54: 1 | L54: 1 | M54: 1 | N54: 1 | O54: 1 | P54: 1 | Q54: 1 | R54: 1 | S54: 1 | T54: 1 | U54: 1 | V54: 0 | W54: 0 | X54: 1 | Y54: 1 | Z54: 0 | AA54: 1 | AB54: 1 | AC54: 1 | AD54: 1 | AE54: 1 | AF54: 1 | AG54: 1 | AH54: 1 | AI54: 0 | AJ54: 1 | AK54: 1 | AL54: 0 | AM54: 1 | AN54: 1 | AO54: 0 | AP54: 0 | AQ54: 1 | AR54: 1 | AS54: 1 | AT54: 1 | AU54: 1 | AV54: 1 | AW54: 1 | AX54: 1 | AY54: 1 | AZ54: 1 | BA54: 42 | BB54: 1764
B55: 37 | C55: 1 | D55: 1 | E55: 0 | F55: 0 | G55: 1 | H55: 1 | I55: 1 | J55: 1 | K55: 1 | L55: 1 | M55: 1 | N55: 1 | O55: 0 | P55: 1 | Q55: 1 | R55: 1 | S55: 1 | T55: 0 | U55: 1 | V55: 1 | W55: 0 | X55: 0 | Y55: 1 | Z55: 1 | AA55: 1 | AB55: 1 | AC55: 1 | AD55: 1 | AE55: 1 | AF55: 1 | AG55: 1 | AH55: 1 | AI55: 0 | AJ55: 1 | AK55: 1 | AL55: 1 | AM55: 1 | AN55: 1 | AO55: 1 | AP55: 0 | AQ55: 1 | AR55: 1 | AS55: 1 | AT55: 1 | AU55: 1 | AV55: 1 | AW55: 1 | AX55: 1 | AY55: 1 | AZ55: 1 | BA55: 42 | BB55: 1764
B56: 39 | C56: 1 | D56: 1 | E56: 1 | F56: 0 | G56: 1 | H56: 1 | I56: 1 | J56: 1 | K56: 1 | L56: 1 | M56: 1 | N56: 1 | O56: 1 | P56: 1 | Q56: 1 | R56: 1 | S56: 1 | T56: 1 | U56: 1 | V56: 0 | W56: 0 | X56: 1 | Y56: 1 | Z56: 0 | AA56: 1 | AB56: 1 | AC56: 1 | AD56: 1 | AE56: 1 | AF56: 1 | AG56: 0 | AH56: 1 | AI56: 0 | AJ56: 1 | AK56: 1 | AL56: 0 | AM56: 1 | AN56: 1 | AO56: 0 | AP56: 0 | AQ56: 1 | AR56: 1 | AS56: 1 | AT56: 1 | AU56: 1 | AV56: 1 | AW56: 1 | AX56: 1 | AY56: 1 | AZ56: 1 | BA56: 41 | BB56: 1681
B57: 21 | C57: 0 | D57: 1 | E57: 1 | F57: 0 | G57: 1 | H57: 1 | I57: 1 | J57: 1 | K57: 1 | L57: 1 | M57: 1 | N57: 0 | O57: 1 | P57: 0 | Q57: 1 | R57: 1 | S57: 1 | T57: 1 | U57: 1 | V57: 1 | W57: 0 | X57: 1 | Y57: 1 | Z57: 1 | AA57: 1 | AB57: 1 | AC57: 1 | AD57: 1 | AE57: 1 | AF57: 1 | AG57: 1 | AH57: 1 | AI57: 0 | AJ57: 1 | AK57: 1 | AL57: 1 | AM57: 1 | AN57: 1 | AO57: 0 | AP57: 1 | AQ57: 1 | AR57: 0 | AS57: 0 | AT57: 1 | AU57: 1 | AV57: 1 | AW57: 0 | AX57: 1 | AY57: 1 | AZ57: 1 | BA57: 40 | BB57: 1600
B58: 35 | C58: 0 | D58: 1 | E58: 1 | F58: 0 | G58: 1 | H58: 1 | I58: 1 | J58: 0 | K58: 1 | L58: 1 | M58: 1 | N58: 1 | O58: 1 | P58: 1 | Q58: 0 | R58: 1 | S58: 1 | T58: 1 | U58: 1 | V58: 0 | W58: 0 | X58: 1 | Y58: 1 | Z58: 1 | AA58: 0 | AB58: 1 | AC58: 1 | AD58: 0 | AE58: 0 | AF58: 1 | AG58: 1 | AH58: 1 | AI58: 0 | AJ58: 0 | AK58: 1 | AL58: 1 | AM58: 1 | AN58: 0 | AO58: 0 | AP58: 1 | AQ58: 1 | AR58: 1 | AS58: 1 | AT58: 1 | AU58: 1 | AV58: 1 | AW58: 1 | AX58: 1 | AY58: 1 | AZ58: 1 | BA58: 37 | BB58: 1369
B59: 27 | C59: 1 | D59: 1 | E59: 1 | F59: 0 | G59: 1 | H59: 1 | I59: 1 | J59: 0 | K59: 0 | L59: 1 | M59: 0 | N59: 0 | O59: 0 | P59: 0 | Q59: 1 | R59: 1 | S59: 1 | T59: 0 | U59: 1 | V59: 0 | W59: 0 | X59: 1 | Y59: 0 | Z59: 1 | AA59: 1 | AB59: 1 | AC59: 1 | AD59: 1 | AE59: 0 | AF59: 1 | AG59: 1 | AH59: 0 | AI59: 0 | AJ59: 0 | AK59: 1 | AL59: 1 | AM59: 1 | AN59: 0 | AO59: 1 | AP59: 1 | AQ59: 1 | AR59: 0 | AS59: 1 | AT59: 1 | AU59: 1 | AV59: 1 | AW59: 1 | AX59: 1 | AY59: 1 | AZ59: 1 | BA59: 33 | BB59: 1089
B60: 36 | C60: 1 | D60: 1 | E60: 1 | F60: 0 | G60: 1 | H60: 1 | I60: 0 | J60: 0 | K60: 0 | L60: 1 | M60: 1 | N60: 1 | O60: 1 | P60: 1 | Q60: 1 | R60: 0 | S60: 0 | T60: 0 | U60: 0 | V60: 1 | W60: 0 | X60: 0 | Y60: 0 | Z60: 1 | AA60: 0 | AB60: 0 | AC60: 1 | AD60: 1 | AE60: 0 | AF60: 1 | AG60: 1 | AH60: 1 | AI60: 0 | AJ60: 1 | AK60: 1 | AL60: 1 | AM60: 1 | AN60: 0 | AO60: 0 | AP60: 1 | AQ60: 1 | AR60: 1 | AS60: 0 | AT60: 1 | AU60: 1 | AV60: 1 | AW60: 1 | AX60: 1 | AY60: 1 | AZ60: 1 | BA60: 32 | BB60: 1024
B61: 15 | C61: 1 | D61: 1 | E61: 1 | F61: 1 | G61: 1 | H61: 0 | I61: 1 | J61: 0 | K61: 0 | L61: 1 | M61: 0 | N61: 1 | O61: 1 | P61: 0 | Q61: 0 | R61: 1 | S61: 0 | T61: 0 | U61: 1 | V61: 1 | W61: 1 | X61: 1 | Y61: 0 | Z61: 1 | AA61: 1 | AB61: 1 | AC61: 0 | AD61: 1 | AE61: 1 | AF61: 0 | AG61: 0 | AH61: 1 | AI61: 0 | AJ61: 1 | AK61: 1 | AL61: 0 | AM61: 1 | AN61: 0 | AO61: 0 | AP61: 1 | AQ61: 1 | AR61: 1 | AS61: 0 | AT61: 1 | AU61: 1 | AV61: 0 | AW61: 0 | AX61: 1 | AY61: 1 | AZ61: 1 | BA61: 31 | BB61: 961
B62: 17 | C62: 0 | D62: 1 | E62: 1 | F62: 0 | G62: 1 | H62: 1 | I62: 1 | J62: 0 | K62: 1 | L62: 1 | M62: 0 | N62: 0 | O62: 1 | P62: 0 | Q62: 0 | R62: 1 | S62: 1 | T62: 1 | U62: 1 | V62: 0 | W62: 1 | X62: 1 | Y62: 1 | Z62: 1 | AA62: 1 | AB62: 0 | AC62: 1 | AD62: 0 | AE62: 0 | AF62: 0 | AG62: 1 | AH62: 1 | AI62: 0 | AJ62: 0 | AK62: 1 | AL62: 0 | AM62: 0 | AN62: 1 | AO62: 1 | AP62: 1 | AQ62: 1 | AR62: 1 | AS62: 0 | AT62: 0 | AU62: 1 | AV62: 1 | AW62: 1 | AX62: 1 | AY62: 0 | AZ62: 1 | BA62: 31 | BB62: 961
B63: 11 | C63: 1 | D63: 1 | E63: 1 | F63: 1 | G63: 0 | H63: 1 | I63: 1 | J63: 0 | K63: 0 | L63: 1 | M63: 1 | N63: 0 | O63: 0 | P63: 0 | Q63: 0 | R63: 1 | S63: 1 | T63: 1 | U63: 0 | V63: 1 | W63: 0 | X63: 0 | Y63: 0 | Z63: 0 | AA63: 0 | AB63: 1 | AC63: 1 | AD63: 1 | AE63: 0 | AF63: 0 | AG63: 1 | AH63: 1 | AI63: 0 | AJ63: 0 | AK63: 1 | AL63: 0 | AM63: 1 | AN63: 1 | AO63: 1 | AP63: 1 | AQ63: 1 | AR63: 1 | AS63: 0 | AT63: 1 | AU63: 1 | AV63: 1 | AW63: 1 | AX63: 1 | AY63: 0 | AZ63: 1 | BA63: 30 | BB63: 900
B64: 14 | C64: 1 | D64: 1 | E64: 1 | F64: 0 | G64: 1 | H64: 1 | I64: 1 | J64: 1 | K64: 1 | L64: 0 | M64: 1 | N64: 0 | O64: 1 | P64: 1 | Q64: 0 | R64: 0 | S64: 1 | T64: 0 | U64: 0 | V64: 0 | W64: 1 | X64: 0 | Y64: 1 | Z64: 1 | AA64: 0 | AB64: 0 | AC64: 1 | AD64: 1 | AE64: 1 | AF64: 0 | AG64: 1 | AH64: 1 | AI64: 0 | AJ64: 0 | AK64: 1 | AL64: 0 | AM64: 0 | AN64: 1 | AO64: 0 | AP64: 1 | AQ64: 1 | AR64: 1 | AS64: 1 | AT64: 0 | AU64: 1 | AV64: 0 | AW64: 0 | AX64: 1 | AY64: 1 | AZ64: 1 | BA64: 30 | BB64: 900
B65: 7 | C65: 1 | D65: 1 | E65: 1 | F65: 0 | G65: 1 | H65: 0 | I65: 1 | J65: 0 | K65: 0 | L65: 1 | M65: 1 | N65: 0 | O65: 0 | P65: 1 | Q65: 0 | R65: 1 | S65: 1 | T65: 1 | U65: 0 | V65: 1 | W65: 0 | X65: 0 | Y65: 1 | Z65: 0 | AA65: 1 | AB65: 1 | AC65: 0 | AD65: 1 | AE65: 0 | AF65: 1 | AG65: 1 | AH65: 1 | AI65: 0 | AJ65: 0 | AK65: 1 | AL65: 0 | AM65: 1 | AN65: 1 | AO65: 0 | AP65: 1 | AQ65: 1 | AR65: 1 | AS65: 0 | AT65: 1 | AU65: 1 | AV65: 1 | AW65: 0 | AX65: 1 | AY65: 0 | AZ65: 0 | BA65: 29 | BB65: 841
B66: 20 | C66: 1 | D66: 1 | E66: 1 | F66: 1 | G66: 1 | H66: 0 | I66: 1 | J66: 0 | K66: 0 | L66: 1 | M66: 0 | N66: 1 | O66: 1 | P66: 0 | Q66: 1 | R66: 1 | S66: 1 | T66: 0 | U66: 1 | V66: 0 | W66: 0 | X66: 0 | Y66: 0 | Z66: 0 | AA66: 1 | AB66: 1 | AC66: 1 | AD66: 1 | AE66: 1 | AF66: 0 | AG66: 0 | AH66: 1 | AI66: 0 | AJ66: 0 | AK66: 1 | AL66: 0 | AM66: 1 | AN66: 0 | AO66: 0 | AP66: 1 | AQ66: 1 | AR66: 1 | AS66: 0 | AT66: 1 | AU66: 1 | AV66: 0 | AW66: 0 | AX66: 1 | AY66: 1 | AZ66: 1 | BA66: 29 | BB66: 841
B67: 25 | C67: 1 | D67: 1 | E67: 1 | F67: 0 | G67: 1 | H67: 0 | I67: 1 | J67: 1 | K67: 0 | L67: 1 | M67: 1 | N67: 0 | O67: 0 | P67: 1 | Q67: 0 | R67: 0 | S67: 1 | T67: 1 | U67: 0 | V67: 0 | W67: 1 | X67: 0 | Y67: 1 | Z67: 1 | AA67: 0 | AB67: 0 | AC67: 1 | AD67: 1 | AE67: 1 | AF67: 0 | AG67: 1 | AH67: 1 | AI67: 0 | AJ67: 0 | AK67: 0 | AL67: 0 | AM67: 0 | AN67: 0 | AO67: 0 | AP67: 1 | AQ67: 1 | AR67: 1 | AS67: 0 | AT67: 1 | AU67: 1 | AV67: 1 | AW67: 1 | AX67: 1 | AY67: 1 | AZ67: 1 | BA67: 29 | BB67: 841
B68: 29 | C68: 0 | D68: 1 | E68: 1 | F68: 0 | G68: 1 | H68: 1 | I68: 1 | J68: 1 | K68: 1 | L68: 1 | M68: 1 | N68: 0 | O68: 1 | P68: 1 | Q68: 0 | R68: 0 | S68: 1 | T68: 0 | U68: 0 | V68: 0 | W68: 0 | X68: 0 | Y68: 0 | Z68: 0 | AA68: 1 | AB68: 1 | AC68: 1 | AD68: 0 | AE68: 0 | AF68: 0 | AG68: 0 | AH68: 1 | AI68: 0 | AJ68: 0 | AK68: 1 | AL68: 0 | AM68: 0 | AN68: 1 | AO68: 1 | AP68: 1 | AQ68: 1 | AR68: 1 | AS68: 1 | AT68: 1 | AU68: 1 | AV68: 1 | AW68: 0 | AX68: 1 | AY68: 1 | AZ68: 0 | BA68: 28 | BB68: 784
B69: 32 | C69: 0 | D69: 1 | E69: 1 | F69: 0 | G69: 1 | H69: 0 | I69: 1 | J69: 0 | K69: 0 | L69: 0 | M69: 1 | N69: 0 | O69: 1 | P69: 1 | Q69: 1 | R69: 1 | S69: 1 | T69: 1 | U69: 1 | V69: 1 | W69: 0 | X69: 0 | Y69: 1 | Z69: 1 | AA69: 0 | AB69: 1 | AC69: 1 | AD69: 1 | AE69: 1 | AF69: 0 | AG69: 0 | AH69: 1 | AI69: 0 | AJ69: 0 | AK69: 1 | AL69: 0 | AM69: 0 | AN69: 0 | AO69: 0 | AP69: 1 | AQ69: 1 | AR69: 1 | AS69: 1 | AT69: 0 | AU69: 0 | AV69: 0 | AW69: 1 | AX69: 1 | AY69: 0 | AZ69: 1 | BA69: 28 | BB69: 784
B70: 33 | C70: 0 | D70: 0 | E70: 1 | F70: 0 | G70: 0 | H70: 0 | I70: 0 | J70: 0 | K70: 0 | L70: 0 | M70: 0 | N70: 0 | O70: 1 | P70: 1 | Q70: 0 | R70: 1 | S70: 1 | T70: 0 | U70: 1 | V70: 1 | W70: 0 | X70: 1 | Y70: 1 | Z70: 1 | AA70: 0 | AB70: 0 | AC70: 0 | AD70: 1 | AE70: 0 | AF70: 1 | AG70: 1 | AH70: 1 | AI70: 0 | AJ70: 1 | AK70: 1 | AL70: 1 | AM70: 0 | AN70: 0 | AO70: 0 | AP70: 1 | AQ70: 1 | AR70: 1 | AS70: 1 | AT70: 1 | AU70: 1 | AV70: 1 | AW70: 1 | AX70: 1 | AY70: 1 | AZ70: 1 | BA70: 28 | BB70: 784
B71: 2 | C71: 1 | D71: 1 | E71: 1 | F71: 0 | G71: 1 | H71: 1 | I71: 0 | J71: 1 | K71: 0 | L71: 1 | M71: 1 | N71: 1 | O71: 1 | P71: 0 | Q71: 1 | R71: 0 | S71: 0 | T71: 1 | U71: 1 | V71: 1 | W71: 1 | X71: 1 | Y71: 0 | Z71: 1 | AA71: 0 | AB71: 0 | AC71: 1 | AD71: 0 | AE71: 0 | AF71: 1 | AG71: 1 | AH71: 1 | AI71: 0 | AJ71: 0 | AK71: 0 | AL71: 0 | AM71: 1 | AN71: 1 | AO71: 0 | AP71: 0 | AQ71: 1 | AR71: 0 | AS71: 0 | AT71: 1 | AU71: 1 | AV71: 0 | AW71: 0 | AX71: 1 | AY71: 0 | AZ71: 0 | BA71: 27 | BB71: 729
B72: 5 | C72: 1 | D72: 1 | E72: 1 | F72: 0 | G72: 1 | H72: 1 | I72: 0 | J72: 0 | K72: 0 | L72: 1 | M72: 0 | N72: 1 | O72: 0 | P72: 0 | Q72: 1 | R72: 1 | S72: 1 | T72: 0 | U72: 1 | V72: 0 | W72: 0 | X72: 1 | Y72: 1 | Z72: 1 | AA72: 0 | AB72: 0 | AC72: 0 | AD72: 0 | AE72: 0 | AF72: 0 | AG72: 1 | AH72: 1 | AI72: 0 | AJ72: 1 | AK72: 1 | AL72: 1 | AM72: 1 | AN72: 0 | AO72: 0 | AP72: 1 | AQ72: 1 | AR72: 1 | AS72: 0 | AT72: 0 | AU72: 0 | AV72: 1 | AW72: 0 | AX72: 1 | AY72: 1 | AZ72: 1 | BA72: 27 | BB72: 729
B73: 13 | C73: 1 | D73: 1 | E73: 1 | F73: 0 | G73: 1 | H73: 0 | I73: 1 | J73: 1 | K73: 1 | L73: 0 | M73: 1 | N73: 0 | O73: 0 | P73: 0 | Q73: 0 | R73: 0 | S73: 1 | T73: 0 | U73: 0 | V73: 0 | W73: 1 | X73: 0 | Y73: 1 | Z73: 1 | AA73: 0 | AB73: 1 | AC73: 0 | AD73: 1 | AE73: 1 | AF73: 0 | AG73: 1 | AH73: 1 | AI73: 0 | AJ73: 0 | AK73: 1 | AL73: 0 | AM73: 0 | AN73: 1 | AO73: 0 | AP73: 1 | AQ73: 1 | AR73: 1 | AS73: 1 | AT73: 0 | AU73: 1 | AV73: 0 | AW73: 0 | AX73: 1 | AY73: 1 | AZ73: 1 | BA73: 27 | BB73: 729
B74: 31 | C74: 1 | D74: 1 | E74: 1 | F74: 0 | G74: 1 | H74: 0 | I74: 1 | J74: 0 | K74: 0 | L74: 1 | M74: 0 | N74: 0 | O74: 1 | P74: 0 | Q74: 1 | R74: 1 | S74: 1 | T74: 0 | U74: 0 | V74: 1 | W74: 0 | X74: 0 | Y74: 0 | Z74: 1 | AA74: 0 | AB74: 0 | AC74: 1 | AD74: 1 | AE74: 0 | AF74: 0 | AG74: 1 | AH74: 1 | AI74: 0 | AJ74: 1 | AK74: 1 | AL74: 0 | AM74: 1 | AN74: 0 | AO74: 1 | AP74: 0 | AQ74: 1 | AR74: 1 | AS74: 0 | AT74: 1 | AU74: 0 | AV74: 1 | AW74: 1 | AX74: 1 | AY74: 1 | AZ74: 0 | BA74: 27 | BB74: 729
B75: 9 | C75: 1 | D75: 1 | E75: 1 | F75: 0 | G75: 1 | H75: 0 | I75: 1 | J75: 1 | K75: 0 | L75: 1 | M75: 1 | N75: 0 | O75: 1 | P75: 1 | Q75: 0 | R75: 0 | S75: 0 | T75: 0 | U75: 1 | V75: 0 | W75: 0 | X75: 0 | Y75: 0 | Z75: 0 | AA75: 1 | AB75: 0 | AC75: 0 | AD75: 0 | AE75: 0 | AF75: 1 | AG75: 1 | AH75: 0 | AI75: 0 | AJ75: 0 | AK75: 1 | AL75: 0 | AM75: 0 | AN75: 0 | AO75: 0 | AP75: 1 | AQ75: 1 | AR75: 1 | AS75: 1 | AT75: 1 | AU75: 1 | AV75: 1 | AW75: 1 | AX75: 1 | AY75: 1 | AZ75: 1 | BA75: 26 | BB75: 676
B76: 23 | C76: 1 | D76: 1 | E76: 1 | F76: 0 | G76: 1 | H76: 0 | I76: 1 | J76: 1 | K76: 1 | L76: 0 | M76: 1 | N76: 0 | O76: 0 | P76: 0 | Q76: 0 | R76: 0 | S76: 1 | T76: 0 | U76: 0 | V76: 0 | W76: 1 | X76: 0 | Y76: 1 | Z76: 1 | AA76: 0 | AB76: 0 | AC76: 1 | AD76: 1 | AE76: 1 | AF76: 0 | AG76: 1 | AH76: 1 | AI76: 0 | AJ76: 0 | AK76: 1 | AL76: 0 | AM76: 0 | AN76: 0 | AO76: 0 | AP76: 1 | AQ76: 1 | AR76: 1 | AS76: 0 | AT76: 0 | AU76: 1 | AV76: 0 | AW76: 0 | AX76: 1 | AY76: 1 | AZ76: 1 | BA76: 25 | BB76: 625
B77: 24 | C77: 0 | D77: 0 | E77: 1 | F77: 0 | G77: 1 | H77: 0 | I77: 1 | J77: 1 | K77: 0 | L77: 0 | M77: 1 | N77: 0 | O77: 1 | P77: 0 | Q77: 1 | R77: 1 | S77: 1 | T77: 0 | U77: 1 | V77: 0 | W77: 0 | X77: 0 | Y77: 0 | Z77: 0 | AA77: 1 | AB77: 0 | AC77: 1 | AD77: 1 | AE77: 1 | AF77: 0 | AG77: 0 | AH77: 1 | AI77: 0 | AJ77: 0 | AK77: 1 | AL77: 0 | AM77: 1 | AN77: 0 | AO77: 0 | AP77: 1 | AQ77: 1 | AR77: 1 | AS77: 0 | AT77: 1 | AU77: 1 | AV77: 0 | AW77: 0 | AX77: 1 | AY77: 1 | AZ77: 1 | BA77: 25 | BB77: 625
B78: 1 | C78: 0 | D78: 0 | E78: 1 | F78: 0 | G78: 0 | H78: 1 | I78: 1 | J78: 0 | K78: 0 | L78: 0 | M78: 1 | N78: 0 | O78: 1 | P78: 0 | Q78: 1 | R78: 0 | S78: 1 | T78: 1 | U78: 1 | V78: 0 | W78: 0 | X78: 0 | Y78: 1 | Z78: 0 | AA78: 0 | AB78: 0 | AC78: 1 | AD78: 0 | AE78: 0 | AF78: 1 | AG78: 1 | AH78: 1 | AI78: 0 | AJ78: 0 | AK78: 1 | AL78: 1 | AM78: 0 | AN78: 0 | AO78: 0 | AP78: 0 | AQ78: 1 | AR78: 1 | AS78: 0 | AT78: 0 | AU78: 1 | AV78: 1 | AW78: 1 | AX78: 1 | AY78: 1 | AZ78: 1 | BA78: 24 | BB78: 576
B79: 12 | C79: 1 | D79: 1 | E79: 1 | F79: 0 | G79: 1 | H79: 0 | I79: 1 | J79: 1 | K79: 0 | L79: 1 | M79: 1 | N79: 0 | O79: 1 | P79: 1 | Q79: 1 | R79: 0 | S79: 0 | T79: 1 | U79: 0 | V79: 1 | W79: 0 | X79: 0 | Y79: 0 | Z79: 0 | AA79: 0 | AB79: 0 | AC79: 0 | AD79: 1 | AE79: 1 | AF79: 0 | AG79: 1 | AH79: 1 | AI79: 0 | AJ79: 0 | AK79: 1 | AL79: 1 | AM79: 0 | AN79: 0 | AO79: 0 | AP79: 1 | AQ79: 0 | AR79: 0 | AS79: 0 | AT79: 0 | AU79: 0 | AV79: 1 | AW79: 1 | AX79: 1 | AY79: 1 | AZ79: 0 | BA79: 24 | BB79: 576
B80: 26 | C80: 0 | D80: 0 | E80: 1 | F80: 0 | G80: 0 | H80: 0 | I80: 1 | J80: 0 | K80: 0 | L80: 1 | M80: 1 | N80: 1 | O80: 0 | P80: 1 | Q80: 1 | R80: 0 | S80: 1 | T80: 0 | U80: 1 | V80: 0 | W80: 0 | X80: 0 | Y80: 1 | Z80: 0 | AA80: 1 | AB80: 0 | AC80: 0 | AD80: 0 | AE80: 0 | AF80: 0 | AG80: 0 | AH80: 1 | AI80: 1 | AJ80: 0 | AK80: 1 | AL80: 0 | AM80: 0 | AN80: 0 | AO80: 1 | AP80: 1 | AQ80: 1 | AR80: 1 | AS80: 0 | AT80: 0 | AU80: 0 | AV80: 1 | AW80: 1 | AX80: 1 | AY80: 1 | AZ80: 1 | BA80: 23 | BB80: 529
B81: 3 | C81: 1 | D81: 1 | E81: 1 | F81: 0 | G81: 1 | H81: 1 | I81: 1 | J81: 0 | K81: 0 | L81: 1 | M81: 1 | N81: 0 | O81: 0 | P81: 1 | Q81: 1 | R81: 1 | S81: 1 | T81: 0 | U81: 0 | V81: 0 | W81: 1 | X81: 0 | Y81: 0 | Z81: 0 | AA81: 0 | AB81: 0 | AC81: 0 | AD81: 1 | AE81: 1 | AF81: 1 | AG81: 0 | AH81: 1 | AI81: 0 | AJ81: 0 | AK81: 1 | AL81: 0 | AM81: 0 | AN81: 0 | AO81: 1 | AP81: 1 | AQ81: 0 | AR81: 1 | AS81: 0 | AT81: 0 | AU81: 0 | AV81: 0 | AW81: 0 | AX81: 0 | AY81: 0 | AZ81: 0 | BA81: 21 | BB81: 441
B82: 10 | C82: 1 | D82: 0 | E82: 0 | F82: 0 | G82: 1 | H82: 1 | I82: 0 | J82: 0 | K82: 0 | L82: 0 | M82: 1 | N82: 0 | O82: 1 | P82: 0 | Q82: 1 | R82: 0 | S82: 1 | T82: 0 | U82: 0 | V82: 0 | W82: 0 | X82: 0 | Y82: 0 | Z82: 0 | AA82: 0 | AB82: 0 | AC82: 0 | AD82: 0 | AE82: 1 | AF82: 0 | AG82: 0 | AH82: 0 | AI82: 0 | AJ82: 0 | AK82: 1 | AL82: 0 | AM82: 0 | AN82: 0 | AO82: 1 | AP82: 1 | AQ82: 1 | AR82: 1 | AS82: 1 | AT82: 1 | AU82: 1 | AV82: 1 | AW82: 1 | AX82: 0 | AY82: 1 | AZ82: 1 | BA82: 20 | BB82: 400
B83: 28 | C83: 0 | D83: 0 | E83: 1 | F83: 0 | G83: 1 | H83: 1 | I83: 0 | J83: 1 | K83: 0 | L83: 0 | M83: 0 | N83: 0 | O83: 0 | P83: 1 | Q83: 1 | R83: 0 | S83: 1 | T83: 0 | U83: 0 | V83: 1 | W83: 0 | X83: 0 | Y83: 0 | Z83: 0 | AA83: 0 | AB83: 0 | AC83: 1 | AD83: 0 | AE83: 0 | AF83: 0 | AG83: 0 | AH83: 1 | AI83: 0 | AJ83: 0 | AK83: 1 | AL83: 0 | AM83: 1 | AN83: 0 | AO83: 0 | AP83: 1 | AQ83: 1 | AR83: 1 | AS83: 0 | AT83: 1 | AU83: 1 | AV83: 0 | AW83: 0 | AX83: 1 | AY83: 1 | AZ83: 1 | BA83: 20 | BB83: 400
B84: 41 | C84: 0 | D84: 0 | E84: 1 | F84: 0 | G84: 1 | H84: 1 | I84: 0 | J84: 1 | K84: 0 | L84: 1 | M84: 0 | N84: 0 | O84: 0 | P84: 1 | Q84: 1 | R84: 0 | S84: 1 | T84: 0 | U84: 0 | V84: 0 | W84: 0 | X84: 0 | Y84: 0 | Z84: 0 | AA84: 0 | AB84: 0 | AC84: 1 | AD84: 0 | AE84: 0 | AF84: 0 | AG84: 0 | AH84: 1 | AI84: 0 | AJ84: 0 | AK84: 1 | AL84: 0 | AM84: 1 | AN84: 0 | AO84: 0 | AP84: 1 | AQ84: 1 | AR84: 1 | AS84: 0 | AT84: 1 | AU84: 1 | AV84: 0 | AW84: 0 | AX84: 1 | AY84: 1 | AZ84: 1 | BA84: 20 | BB84: 400
B85: 4 | C85: 0 | D85: 0 | E85: 0 | F85: 0 | G85: 1 | H85: 0 | I85: 0 | J85: 0 | K85: 0 | L85: 0 | M85: 1 | N85: 0 | O85: 1 | P85: 0 | Q85: 1 | R85: 0 | S85: 1 | T85: 0 | U85: 0 | V85: 0 | W85: 0 | X85: 0 | Y85: 1 | Z85: 1 | AA85: 0 | AB85: 1 | AC85: 0 | AD85: 1 | AE85: 0 | AF85: 1 | AG85: 1 | AH85: 1 | AI85: 0 | AJ85: 0 | AK85: 1 | AL85: 0 | AM85: 0 | AN85: 0 | AO85: 0 | AP85: 0 | AQ85: 1 | AR85: 1 | AS85: 0 | AT85: 0 | AU85: 0 | AV85: 1 | AW85: 1 | AX85: 1 | AY85: 0 | AZ85: 1 | BA85: 19 | BB85: 361
B86: 22 | C86: 1 | D86: 1 | E86: 1 | F86: 1 | G86: 1 | H86: 0 | I86: 1 | J86: 1 | K86: 1 | L86: 1 | M86: 1 | N86: 0 | O86: 0 | P86: 0 | Q86: 1 | R86: 0 | S86: 0 | T86: 1 | U86: 0 | V86: 0 | W86: 0 | X86: 0 | Y86: 0 | Z86: 0 | AA86: 0 | AB86: 0 | AC86: 1 | AD86: 0 | AE86: 0 | AF86: 0 | AG86: 0 | AH86: 0 | AI86: 0 | AJ86: 0 | AK86: 1 | AL86: 0 | AM86: 0 | AN86: 0 | AO86: 0 | AP86: 1 | AQ86: 1 | AR86: 1 | AS86: 0 | AT86: 0 | AU86: 0 | AV86: 0 | AW86: 0 | AX86: 1 | AY86: 1 | AZ86: 0 | BA86: 19 | BB86: 361
B87: 30 | C87: 1 | D87: 1 | E87: 0 | F87: 1 | G87: 1 | H87: 1 | I87: 0 | J87: 0 | K87: 0 | L87: 0 | M87: 1 | N87: 0 | O87: 0 | P87: 1 | Q87: 1 | R87: 0 | S87: 1 | T87: 0 | U87: 0 | V87: 1 | W87: 0 | X87: 0 | Y87: 0 | Z87: 0 | AA87: 0 | AB87: 0 | AC87: 1 | AD87: 0 | AE87: 0 | AF87: 1 | AG87: 0 | AH87: 0 | AI87: 0 | AJ87: 0 | AK87: 1 | AL87: 0 | AM87: 0 | AN87: 0 | AO87: 0 | AP87: 0 | AQ87: 1 | AR87: 1 | AS87: 0 | AT87: 0 | AU87: 0 | AV87: 1 | AW87: 1 | AX87: 1 | AY87: 1 | AZ87: 0 | BA87: 19 | BB87: 361
B88: 34 | C88: 1 | D88: 1 | E88: 0 | F88: 0 | G88: 0 | H88: 0 | I88: 0 | J88: 0 | K88: 0 | L88: 0 | M88: 1 | N88: 1 | O88: 0 | P88: 0 | Q88: 1 | R88: 0 | S88: 1 | T88: 0 | U88: 1 | V88: 0 | W88: 0 | X88: 0 | Y88: 1 | Z88: 0 | AA88: 0 | AB88: 0 | AC88: 1 | AD88: 1 | AE88: 1 | AF88: 0 | AG88: 1 | AH88: 1 | AI88: 0 | AJ88: 0 | AK88: 1 | AL88: 0 | AM88: 1 | AN88: 0 | AO88: 0 | AP88: 0 | AQ88: 1 | AR88: 0 | AS88: 0 | AT88: 0 | AU88: 0 | AV88: 0 | AW88: 0 | AX88: 1 | AY88: 1 | AZ88: 1 | BA88: 19 | BB88: 361
B89: 18 | C89: 0 | D89: 0 | E89: 1 | F89: 1 | G89: 1 | H89: 0 | I89: 1 | J89: 0 | K89: 0 | L89: 0 | M89: 0 | N89: 0 | O89: 0 | P89: 0 | Q89: 1 | R89: 0 | S89: 0 | T89: 0 | U89: 0 | V89: 0 | W89: 0 | X89: 0 | Y89: 0 | Z89: 0 | AA89: 1 | AB89: 0 | AC89: 1 | AD89: 0 | AE89: 0 | AF89: 1 | AG89: 1 | AH89: 1 | AI89: 0 | AJ89: 0 | AK89: 1 | AL89: 0 | AM89: 1 | AN89: 0 | AO89: 0 | AP89: 1 | AQ89: 1 | AR89: 0 | AS89: 0 | AT89: 1 | AU89: 0 | AV89: 0 | AW89: 0 | AX89: 0 | AY89: 0 | AZ89: 0 | BA89: 15 | BB89: 225
B90: 38 | C90: 0 | D90: 0 | E90: 1 | F90: 0 | G90: 0 | H90: 1 | I90: 0 | J90: 0 | K90: 0 | L90: 1 | M90: 0 | N90: 0 | O90: 0 | P90: 0 | Q90: 0 | R90: 0 | S90: 1 | T90: 0 | U90: 1 | V90: 0 | W90: 0 | X90: 1 | Y90: 0 | Z90: 1 | AA90: 0 | AB90: 0 | AC90: 1 | AD90: 0 | AE90: 0 | AF90: 0 | AG90: 0 | AH90: 0 | AI90: 1 | AJ90: 0 | AK90: 0 | AL90: 0 | AM90: 1 | AN90: 0 | AO90: 1 | AP90: 0 | AQ90: 0 | AR90: 0 | AS90: 1 | AT90: 0 | AU90: 0 | AV90: 0 | AW90: 1 | AX90: 0 | AY90: 0 | AZ90: 1 | BA90: 14 | BB90: 196
B91: 6 | C91: 0 | D91: 1 | E91: 1 | F91: 0 | G91: 1 | H91: 1 | I91: 0 | J91: 0 | K91: 0 | L91: 0 | M91: 0 | N91: 0 | O91: 0 | P91: 0 | Q91: 0 | R91: 0 | S91: 1 | T91: 0 | U91: 1 | V91: 0 | W91: 1 | X91: 0 | Y91: 0 | Z91: 1 | AA91: 0 | AB91: 0 | AC91: 1 | AD91: 0 | AE91: 0 | AF91: 1 | AG91: 0 | AH91: 0 | AI91: 0 | AJ91: 0 | AK91: 0 | AL91: 0 | AM91: 0 | AN91: 0 | AO91: 0 | AP91: 1 | AQ91: 0 | AR91: 1 | AS91: 0 | AT91: 0 | AU91: 0 | AV91: 1 | AW91: 0 | AX91: 0 | AY91: 0 | AZ91: 0 | BA91: 13 | BB91: 169
B92: 40 | C92: 0 | D92: 1 | E92: 1 | F92: 0 | G92: 1 | H92: 1 | I92: 0 | J92: 0 | K92: 0 | L92: 0 | M92: 0 | N92: 0 | O92: 0 | P92: 0 | Q92: 0 | R92: 0 | S92: 1 | T92: 0 | U92: 1 | V92: 0 | W92: 1 | X92: 0 | Y92: 0 | Z92: 1 | AA92: 0 | AB92: 0 | AC92: 1 | AD92: 0 | AE92: 0 | AF92: 1 | AG92: 0 | AH92: 0 | AI92: 0 | AJ92: 0 | AK92: 0 | AL92: 0 | AM92: 0 | AN92: 0 | AO92: 0 | AP92: 1 | AQ92: 0 | AR92: 1 | AS92: 0 | AT92: 0 | AU92: 0 | AV92: 1 | AW92: 0 | AX92: 0 | AY92: 0 | AZ92: 0 | BA92: 13 | BB92: 169
BA93: =SUM(BA52:BA92) -> 1117 | BB93: =SUM(BB52:BB92) -> 33307
B94: คำถามข้อที่ | C94: 1 | D94: 2 | E94: 3 | F94: 4 | G94: 5 | H94: 6 | I94: 7 | J94: 8 | K94: 9 | L94: 10 | M94: 11 | N94: 12 | O94: 13 | P94: 14 | Q94: 15 | R94: 16 | S94: 17 | T94: 18 | U94: 19 | V94: 20 | W94: 21 | X94: 22 | Y94: 23 | Z94: 24 | AA94: 25 | AB94: 26 | AC94: 27 | AD94: 28 | AE94: 29 | AF94: 30 | AG94: 31 | AH94: 32 | AI94: 33 | AJ94: 34 | AK94: 35 | AL94: 36 | AM94: 37 | AN94: 38 | AO94: 39 | AP94: 40 | AQ94: 41 | AR94: 42 | AS94: 43 | AT94: 44 | AU94: 45 | AV94: 46 | AW94: 47 | AX94: 48 | AY94: 49 | AZ94: 50
B95: ตอบถูก | C95: =COUNTIF(C52:C92,1) -> 25 | D95: 31 | E95: 35 | F95: 6 | G95: 35 | H95: 24 | I95: 28 | J95: 18 | K95: 13 | L95: 26 | M95: 28 | N95: 13 | O95: 21 | P95: 20 | Q95: 26 | R95: 19 | S95: 34 | T95: 15 | U95: 23 | V95: 15 | W95: 10 | X95: 13 | Y95: 20 | Z95: 22 | AA95: 16 | AB95: 16 | AC95: 30 | AD95: 24 | AE95: 18 | AF95: 20 | AG95: 25 | AH95: 33 | AI95: =COUNTIF(AI52:AI92,1) -> 2 | AJ95: 11 | AK95: 36 | AL95: 11 | AM95: 22 | AN95: 13 | AO95: 12 | AP95: 29 | AQ95: 36 | AR95: 34 | AS95: 15 | AT95: 24 | AU95: 27 | AV95: 26 | AW95: 22 | AX95: 35 | AY95: 30 | AZ95: 30
B96: ตอบผิด | C96: =COUNTIF(C52:C92,0) -> 16 | D96: 10 | E96: 6 | F96: 35 | G96: 6 | H96: 17 | I96: 13 | J96: 23 | K96: 28 | L96: 15 | M96: 13 | N96: 28 | O96: 20 | P96: 21 | Q96: 15 | R96: 22 | S96: 7 | T96: 26 | U96: 18 | V96: 26 | W96: 31 | X96: 28 | Y96: 21 | Z96: 19 | AA96: 25 | AB96: 25 | AC96: 11 | AD96: 17 | AE96: 23 | AF96: 21 | AG96: 16 | AH96: 8 | AI96: =COUNTIF(AI52:AI92,0) -> 39 | AJ96: 30 | AK96: 5 | AL96: 30 | AM96: 19 | AN96: 28 | AO96: 29 | AP96: 12 | AQ96: 5 | AR96: 7 | AS96: 26 | AT96: 17 | AU96: 14 | AV96: 15 | AW96: 19 | AX96: 6 | AY96: 11 | AZ96: 11
B97: pi | C97: =95:95/41 -> 0.6097560976 | D97: 0.756097561 | E97: 0.8536585366 | F97: 0.1463414634 | G97: 0.8536585366 | H97: 0.5853658537 | I97: 0.6829268293 | J97: 0.4390243902 | K97: 0.3170731707 | L97: 0.6341463415 | M97: 0.6829268293 | N97: 0.3170731707 | O97: 0.512195122 | P97: 0.487804878 | Q97: 0.6341463415 | R97: 0.4634146341 | S97: 0.8292682927 | T97: 0.3658536585 | U97: 0.5609756098 | V97: 0.3658536585 | W97: 0.243902439 | X97: 0.3170731707 | Y97: 0.487804878 | Z97: 0.5365853659 | AA97: 0.3902439024 | AB97: 0.3902439024 | AC97: 0.7317073171 | AD97: 0.5853658537 | AE97: 0.4390243902 | AF97: 0.487804878 | AG97: 0.6097560976 | AH97: 0.8048780488 | AI97: =95:95/41 -> 0.0487804878 | AJ97: 0.2682926829 | AK97: 0.8780487805 | AL97: 0.2682926829 | AM97: 0.5365853659 | AN97: 0.3170731707 | AO97: 0.2926829268 | AP97: 0.7073170732 | AQ97: 0.8780487805 | AR97: 0.8292682927 | AS97: 0.3658536585 | AT97: 0.5853658537 | AU97: 0.6585365854 | AV97: 0.6341463415 | AW97: 0.5365853659 | AX97: 0.8536585366 | AY97: 0.7317073171 | AZ97: 0.7317073171
B98: qi | C98: =96:96/41 -> 0.3902439024 | D98: 0.243902439 | E98: 0.1463414634 | F98: 0.8536585366 | G98: 0.1463414634 | H98: 0.4146341463 | I98: 0.3170731707 | J98: 0.5609756098 | K98: 0.6829268293 | L98: 0.3658536585 | M98: 0.3170731707 | N98: 0.6829268293 | O98: 0.487804878 | P98: 0.512195122 | Q98: 0.3658536585 | R98: 0.5365853659 | S98: 0.1707317073 | T98: 0.6341463415 | U98: 0.4390243902 | V98: 0.6341463415 | W98: 0.756097561 | X98: 0.6829268293 | Y98: 0.512195122 | Z98: 0.4634146341 | AA98: 0.6097560976 | AB98: 0.6097560976 | AC98: 0.2682926829 | AD98: 0.4146341463 | AE98: 0.5609756098 | AF98: 0.512195122 | AG98: 0.3902439024 | AH98: 0.1951219512 | AI98: =96:96/41 -> 0.9512195122 | AJ98: 0.7317073171 | AK98: 0.1219512195 | AL98: 0.7317073171 | AM98: 0.4634146341 | AN98: 0.6829268293 | AO98: 0.7073170732 | AP98: 0.2926829268 | AQ98: 0.1219512195 | AR98: 0.1707317073 | AS98: 0.6341463415 | AT98: 0.4146341463 | AU98: 0.3414634146 | AV98: 0.3658536585 | AW98: 0.4634146341 | AX98: 0.1463414634 | AY98: 0.2682926829 | AZ98: 0.2682926829
B99: piqi | C99: =C97 * C98 -> 0.237953599 | D99: 0.1844140393 | E99: 0.1249256395 | F99: 0.1249256395 | G99: 0.1249256395 | H99: 0.242712671 | I99: 0.2165377751 | J99: 0.246281975 | K99: 0.2165377751 | L99: 0.2320047591 | M99: 0.2165377751 | N99: 0.2165377751 | O99: 0.249851279 | P99: 0.249851279 | Q99: 0.2320047591 | R99: 0.248661511 | S99: 0.1415823914 | T99: 0.2320047591 | U99: 0.246281975 | V99: 0.2320047591 | W99: 0.1844140393 | X99: 0.2165377751 | Y99: 0.249851279 | Z99: 0.248661511 | AA99: 0.237953599 | AB99: 0.237953599 | AC99: 0.1963117192 | AD99: 0.242712671 | AE99: 0.246281975 | AF99: 0.249851279 | AG99: 0.237953599 | AH99: 0.1570493754 | AI99: =AI97 * AI98 -> 0.04640095181 | AJ99: 0.1963117192 | AK99: 0.1070791196 | AL99: 0.1963117192 | AM99: 0.248661511 | AN99: 0.2165377751 | AO99: 0.2070196312 | AP99: 0.2070196312 | AQ99: 0.1070791196 | AR99: 0.1415823914 | AS99: 0.2320047591 | AT99: 0.242712671 | AU99: 0.2248661511 | AV99: 0.2320047591 | AW99: 0.248661511 | AX99: 0.1249256395 | AY99: 0.1963117192 | AZ99: 0.1963117192 | BB99: =SUM(C99:AZ99) -> 10.29387269
B101: ร้อยละการเลือกตัวเลือกแต่ละข้อ
B102: ข้อ | C102: 1 | D102: 2 | E102: 3 | F102: 4 | G102: 5 | H102: 6 | I102: 7 | J102: 8 | K102: 9 | L102: 10 | M102: 11 | N102: 12 | O102: 13 | P102: 14 | Q102: 15 | R102: 16 | S102: 17 | T102: 18 | U102: 19 | V102: 20 | W102: 21 | X102: 22 | Y102: 23 | Z102: 24 | AA102: 25 | AB102: 26 | AC102: 27 | AD102: 28 | AE102: 29 | AF102: 30 | AG102: 31 | AH102: 32 | AI102: 33 | AJ102: 34 | AK102: 35 | AL102: 36 | AM102: 37 | AN102: 38 | AO102: 39 | AP102: 40 | AQ102: 41 | AR102: 42 | AS102: 43 | AT102: 44 | AU102: 45 | AV102: 46 | AW102: 47 | AX102: 48 | AY102: 49 | AZ102: 50
B103: ข้อ ก | C103: =COUNTIF(C8:C48,"ก") / 41 * 100 -> 4.87804878 | D103: 75.6097561 | E103: 14.63414634 | F103: 14.63414634 | G103: 4.87804878 | H103: 7.317073171 | I103: 7.317073171 | J103: 19.51219512 | K103: 7.317073171 | L103: 4.87804878 | M103: 21.95121951 | N103: 14.63414634 | O103: 41.46341463 | P103: 24.3902439 | Q103: 14.63414634 | R103: 19.51219512 | S103: 9.756097561 | T103: 2.43902439 | U103: 17.07317073 | V103: 24.3902439 | W103: 7.317073171 | X103: 4.87804878 | Y103: 48.7804878 | Z103: 14.63414634 | AA103: 39.02439024 | AB103: 19.51219512 | AC103: 12.19512195 | AD103: 19.51219512 | AE103: 43.90243902 | AF103: 7.317073171 | AG103: 24.3902439 | AH103: 2.43902439 | AI103: =COUNTIF(AI8:AI48,"ก") / 41 * 100 -> 46.34146341 | AJ103: 26.82926829 | AK103: 4.87804878 | AL103: 36.58536585 | AM103: 53.65853659 | AN103: 31.70731707 | AO103: 14.63414634 | AP103: 21.95121951 | AQ103: 2.43902439 | AR103: 12.19512195 | AS103: 9.756097561 | AT103: 14.63414634 | AU103: 65.85365854 | AV103: 9.756097561 | AW103: 19.51219512 | AX103: 85.36585366 | AY103: 4.87804878 | AZ103: 14.63414634
B104: ข้อ ข | C104: =COUNTIF(C8:C48,"ข") / 41 * 100 -> 34.14634146 | D104: 2.43902439 | E104: 85.36585366 | F104: 60.97560976 | G104: 2.43902439 | H104: 9.756097561 | I104: 68.29268293 | J104: 21.95121951 | K104: 31.70731707 | L104: 12.19512195 | M104: 68.29268293 | N104: 39.02439024 | O104: 4.87804878 | P104: 48.7804878 | Q104: 12.19512195 | R104: 7.317073171 | S104: 4.87804878 | T104: 48.7804878 | U104: 17.07317073 | V104: 24.3902439 | W104: 24.3902439 | X104: 31.70731707 | Y104: 21.95121951 | Z104: 24.3902439 | AA104: 26.82926829 | AB104: 21.95121951 | AC104: 73.17073171 | AD104: 7.317073171 | AE104: 24.3902439 | AF104: 9.756097561 | AG104: 60.97560976 | AH104: 80.48780488 | AI104: =COUNTIF(AI8:AI48,"ข") / 41 * 100 -> 4.87804878 | AJ104: 2.43902439 | AK104: 4.87804878 | AL104: 26.82926829 | AM104: 0 | AN104: 14.63414634 | AO104: 31.70731707 | AP104: 2.43902439 | AQ104: 2.43902439 | AR104: 4.87804878 | AS104: 34.14634146 | AT104: 9.756097561 | AU104: 14.63414634 | AV104: 4.87804878 | AW104: 7.317073171 | AX104: 0 | AY104: 14.63414634 | AZ104: 2.43902439
B105: ข้อ ค | C105: =COUNTIF(C8:C48,"ค") / 41 * 100 -> 60.97560976 | D105: 12.19512195 | E105: 0 | F105: 7.317073171 | G105: 85.36585366 | H105: 24.3902439 | I105: 24.3902439 | J105: 43.90243902 | K105: 24.3902439 | L105: 63.41463415 | M105: 0 | N105: 14.63414634 | O105: 51.2195122 | P105: 21.95121951 | Q105: 63.41463415 | R105: 26.82926829 | S105: 2.43902439 | T105: 12.19512195 | U105: 56.09756098 | V105: 36.58536585 | W105: 53.65853659 | X105: 31.70731707 | Y105: 26.82926829 | Z105: 7.317073171 | AA105: 14.63414634 | AB105: 39.02439024 | AC105: 14.63414634 | AD105: 58.53658537 | AE105: 19.51219512 | AF105: 34.14634146 | AG105: 9.756097561 | AH105: 7.317073171 | AI105: =COUNTIF(AI8:AI48,"ค") / 41 * 100 -> 14.63414634 | AJ105: 29.26829268 | AK105: 2.43902439 | AL105: 26.82926829 | AM105: 14.63414634 | AN105: 0 | AO105: 24.3902439 | AP105: 4.87804878 | AQ105: 87.80487805 | AR105: 0 | AS105: 36.58536585 | AT105: 17.07317073 | AU105: 12.19512195 | AV105: 21.95121951 | AW105: 19.51219512 | AX105: 7.317073171 | AY105: 7.317073171 | AZ105: 73.17073171
B106: ข้อ ง | C106: =COUNTIF(C8:C48,"ง") / 41 * 100 -> 0 | D106: 9.756097561 | E106: 0 | F106: 17.07317073 | G106: 7.317073171 | H106: 58.53658537 | I106: 0 | J106: 14.63414634 | K106: 36.58536585 | L106: 19.51219512 | M106: 9.756097561 | N106: 31.70731707 | O106: 2.43902439 | P106: 4.87804878 | Q106: 9.756097561 | R106: 46.34146341 | S106: 82.92682927 | T106: 36.58536585 | U106: 9.756097561 | V106: 14.63414634 | W106: 14.63414634 | X106: 31.70731707 | Y106: 2.43902439 | Z106: 53.65853659 | AA106: 19.51219512 | AB106: 19.51219512 | AC106: 0 | AD106: 14.63414634 | AE106: 12.19512195 | AF106: 48.7804878 | AG106: 4.87804878 | AH106: 7.317073171 | AI106: =COUNTIF(AI8:AI48,"ง") / 41 * 100 -> 34.14634146 | AJ106: 41.46341463 | AK106: 87.80487805 | AL106: 9.756097561 | AM106: 31.70731707 | AN106: 53.65853659 | AO106: 29.26829268 | AP106: 70.73170732 | AQ106: 7.317073171 | AR106: 82.92682927 | AS106: 19.51219512 | AT106: 58.53658537 | AU106: 7.317073171 | AV106: 63.41463415 | AW106: 53.65853659 | AX106: 7.317073171 | AY106: 73.17073171 | AZ106: 9.756097561
B107: รวม | C107: =SUM(C103:C106) -> 100 | D107: 100 | E107: 100 | F107: 100 | G107: 100 | H107: 100 | I107: 100 | J107: 100 | K107: 100 | L107: 100 | M107: 100 | N107: 100 | O107: 100 | P107: 100 | Q107: 100 | R107: 100 | S107: 100 | T107: 100 | U107: 100 | V107: 100 | W107: 100 | X107: 100 | Y107: 100 | Z107: 100 | AA107: 100 | AB107: 100 | AC107: 100 | AD107: 100 | AE107: 100 | AF107: 100 | AG107: 100 | AH107: 97.56097561 | AI107: =SUM(AI103:AI106) -> 100 | AJ107: 100 | AK107: 100 | AL107: 100 | AM107: 100 | AN107: 100 | AO107: 100 | AP107: 100 | AQ107: 100 | AR107: 100 | AS107: 100 | AT107: 100 | AU107: 100 | AV107: 100 | AW107: 100 | AX107: 100 | AY107: 100 | AZ107: 100
B110: IF total (รวม) | C110: =SUM(C52:C92)/41 -> 0.6097560976 | D110: 0.756097561 | E110: 0.8536585366 | F110: 0.1463414634 | G110: 0.8536585366 | H110: 0.5853658537 | I110: 0.6829268293 | J110: 0.4390243902 | K110: 0.3170731707 | L110: 0.6341463415 | M110: 0.6829268293 | N110: 0.3170731707 | O110: 0.512195122 | P110: 0.487804878 | Q110: 0.6341463415 | R110: 0.4634146341 | S110: 0.8292682927 | T110: 0.3658536585 | U110: 0.5609756098 | V110: 0.3658536585 | W110: 0.243902439 | X110: 0.3170731707 | Y110: 0.487804878 | Z110: 0.5365853659 | AA110: 0.3902439024 | AB110: 0.3902439024 | AC110: 0.7317073171 | AD110: 0.5853658537 | AE110: 0.4390243902 | AF110: 0.487804878 | AG110: 0.6097560976 | AH110: 0.8048780488 | AI110: =SUM(AI52:AI92)/41 -> 0.0487804878 | AJ110: 0.2682926829 | AK110: 0.8780487805 | AL110: 0.2682926829 | AM110: 0.5365853659 | AN110: 0.3170731707 | AO110: 0.2926829268 | AP110: 0.7073170732 | AQ110: 0.8780487805 | AR110: 0.8292682927 | AS110: 0.3658536585 | AT110: 0.5853658537 | AU110: 0.6585365854 | AV110: 0.6341463415 | AW110: 0.5365853659 | AX110: 0.8536585366 | AY110: 0.7317073171 | AZ110: 0.7317073171
B111: IF Upper (กลุ่มสูง) | C111: =SUM(C52:C67)/13 -> 1 | D111: 1.230769231 | E111: 1.076923077 | F111: 0.2307692308 | G111: 1.153846154 | H111: 0.9230769231 | I111: 1.153846154 | J111: 0.6153846154 | K111: 0.6923076923 | L111: 1.153846154 | M111: 0.9230769231 | N111: 0.6923076923 | O111: 0.7692307692 | P111: 0.7692307692 | Q111: 0.6923076923 | R111: 1 | S111: 1.076923077 | T111: 0.7692307692 | U111: 0.8461538462 | V111: 0.6153846154 | W111: 0.3076923077 | X111: 0.6923076923 | Y111: 0.8461538462 | Z111: 0.8461538462 | AA111: 0.8461538462 | AB111: 0.9230769231 | AC111: 1.076923077 | AD111: 1.076923077 | AE111: 0.7692307692 | AF111: 0.7692307692 | AG111: 1 | AH111: 1.153846154 | AI111: =SUM(AI52:AI67)/13 -> 0 | AJ111: 0.6153846154 | AK111: 1.153846154 | AL111: 0.5384615385 | AM111: 1 | AN111: 0.7692307692 | AO111: 0.4615384615 | AP111: 0.8461538462 | AQ111: 1.230769231 | AR111: 1.076923077 | AS111: 0.6153846154 | AT111: 1.076923077 | AU111: 1.230769231 | AV111: 1 | AW111: 0.8461538462 | AX111: 1.230769231 | AY111: 1 | AZ111: 1.153846154
B112: IF Lower (กลุ่มต่ำ) | C112: =SUM(C80:C92)/13 -> 0.3846153846 | D112: 0.4615384615 | E112: 0.6923076923 | F112: 0.2307692308 | G112: 0.7692307692 | H112: 0.6153846154 | I112: 0.3076923077 | J112: 0.2307692308 | K112: 0.07692307692 | L112: 0.3846153846 | M112: 0.5384615385 | N112: 0.1538461538 | O112: 0.1538461538 | P112: 0.3846153846 | Q112: 0.7692307692 | R112: 0.07692307692 | S112: 0.8461538462 | T112: 0.07692307692 | U112: 0.3846153846 | V112: 0.1538461538 | W112: 0.2307692308 | X112: 0.07692307692 | Y112: 0.2307692308 | Z112: 0.3076923077 | AA112: 0.1538461538 | AB112: 0.07692307692 | AC112: 0.6923076923 | AD112: 0.2307692308 | AE112: 0.2307692308 | AF112: 0.4615384615 | AG112: 0.2307692308 | AH112: 0.5384615385 | AI112: =SUM(AI80:AI92)/13 -> 0.1538461538 | AJ112: 0 | AK112: 0.7692307692 | AL112: 0 | AM112: 0.3846153846 | AN112: 0 | AO112: 0.3076923077 | AP112: 0.6923076923 | AQ112: 0.6923076923 | AR112: 0.7692307692 | AS112: 0.1538461538 | AT112: 0.3076923077 | AU112: 0.2307692308 | AV112: 0.4615384615 | AW112: 0.3846153846 | AX112: 0.5384615385 | AY112: 0.5384615385 | AZ112: 0.5384615385
B113: ID (อำนาจจำแนก) | C113: =C111-C112 -> 0.6153846154 | D113: 0.7692307692 | E113: 0.3846153846 | F113: 0 | G113: 0.3846153846 | H113: 0.3076923077 | I113: 0.8461538462 | J113: 0.3846153846 | K113: 0.6153846154 | L113: 0.7692307692 | M113: 0.3846153846 | N113: 0.5384615385 | O113: 0.6153846154 | P113: 0.3846153846 | Q113: -0.07692307692 | R113: 0.9230769231 | S113: 0.2307692308 | T113: 0.6923076923 | U113: 0.4615384615 | V113: 0.4615384615 | W113: 0.07692307692 | X113: 0.6153846154 | Y113: 0.6153846154 | Z113: 0.5384615385 | AA113: 0.6923076923 | AB113: 0.8461538462 | AC113: 0.3846153846 | AD113: 0.8461538462 | AE113: 0.5384615385 | AF113: 0.3076923077 | AG113: 0.7692307692 | AH113: 0.6153846154 | AI113: =AI111-AI112 -> -0.1538461538 | AJ113: 0.6153846154 | AK113: 0.3846153846 | AL113: 0.5384615385 | AM113: 0.6153846154 | AN113: 0.7692307692 | AO113: 0.1538461538 | AP113: 0.1538461538 | AQ113: 0.5384615385 | AR113: 0.3076923077 | AS113: 0.4615384615 | AT113: 0.7692307692 | AU113: 1 | AV113: 0.5384615385 | AW113: 0.4615384615 | AX113: 0.6923076923 | AY113: 0.4615384615 | AZ113: 0.6153846154
B115: Reliability(KR-20) | C115: 0.8706419004
B116: คะแนนเฉลี่ย | C116: =AVERAGE(BA52:BA92) -> 27.24390244
B117: ความแปรปรวน (Variance) | C117: =((41 * 33307) - (1117^ 2)) / 41^2 -> 70.13563355
B118: ความคลาดเคลื่อนฯ(SEM) | C118: =C117*SQRT(1-C115) -> 25.22525341

Sheet คำอธิบาย
C2: การใช้งาน
C3: 1 | D3: ระบุจำนวนข้อสอบที่นำมาวิเคราะห์
C4: 2 | D4: ระบุตัวเลือก เช่น ก ข ค ง หรือ a b c d เป็นต้น
C5: 3 | D5: ใส่หมายเลขข้อและตัวเฉลยให้ครบทุกข้อ
C6: 4 | D6: นำกระดาษคำตอบทุกฉบับมากรอกข้อมูล
C7: 5 | D7: คลิกปุ่มวิเคราะห์ข้อมูล โปรแกรมจะตรวจและแสดงผลการวิเคราะห์
C8: 6 | D8: วิเคราะหข้อสอบได้ ไม่เกิน 2,000 ฉบับ แต่ละฉบับ มีข้อสอบไม่เกิน 200 ข้อ
C9: 7 | D9: ห้ามเคลื่อนย้ายตำแหน่งต่าง ๆ ใน Sheet1 มิฉะนั้น โปรแกรมจะทำงานผิดพลาด
D10: เพื่อรักษารูปแบบในแผ่นงาน ไฟล์นี้ จึงจำกัดการวาง (Paste) และการล้างรูปแบบ (Clear all, Clear formats และ Clear comments)
C12: การวิเคราะห์
D13: โปรแกรม ใช้การวิเคราะห์ข้อสอบแบบอิงกลุ่ม โดยโปรแกรมจะตรวจและเรียงคะแนนจากสูงไปหาต่ำ แบ่งกระดาษออกเป็นกลุ่มสูง กลุ่มกลาง และกลุ่มต่ำ และนำไปคำนวณค่าสถิติ
E14: - หากจำนวนข้อสอบที่นำมาวิเคราะห์ อยู่ในช่วง 1 ถึง 40 ใช้เทคนิคการแบ่งกลุ่มร้อยละ 50
E15: - หากอยู่ในช่วง 41 ถึง 150 ใช้เทคนิคการแบ่งกลุ่มร้อยละ 33.33 กลุ่มกลางไม่นำมาวิเคราะห์
E16: - หากมากกว่า 150 ใช้เทคนิค ร้อยละ 27 กลุ่มกลางไม่นำมาวิเคราะห์
D18: การวิเคราะห์ใช้สูตร KR-20
C20: การแปลความหมาย
D21: ค่า ความยากง่าย (IF total) | G21: ความยากง่ายในแต่ละข้อ ถ้าค่าสูง (เข้าใกล้ 1)แสดงว่าข้อสอบง่าย ถ้าค่าต่ำ (เข้าใกล้ 0) แสดงว่าข้อสอบยาก ค่าที่รับได้คือ ระหว่าง 0.2-0.8
G22: 0.81 ถึง 1.00 ง่ายมาก ควรตัดทิ้ง หรือปรับปรุง
G23: 0.61 ถึง 0.80 ค่อนข้างง่าย ดีพอใช้ เก็บไว้ใช้
G24: 0.41 ถึง 0.60 ความยากพอเหมาะ ดีมาก เก็บไว้ใช้
G25: 0.20 ถึง 0.40 ค่อนข้างยาก ดีพอใช้ เก็บไว้ใช้
G26: 0.00 ถึง 0.19 ยากมาก ควรตัดทิ้ง หรือปรับปรุง
D28: ค่าอำนาจจำแนก (ID) | G28: ค่าอำนาจจำแนก ควรมีค่าตั้งแต่ 0.2 ขึ้น ไป
G29: 0.60 – 1.00 | I29: ดีมาก
G30: 0.40 – 0.59 | I30: ดี
G31: 0.20 – 0.39 | I31: พอใช้ได้
G32: 0.00 – 0.19 | I32: ค่อนข้างต่ำ ควรปรับปรุง
G33: น้อยกว่า 0.00 | I33: ควรตัดทิ้ง หรือปรับปรุง
G35: ค่าอำนาจจำแนกของข้อสอบ มีดังนี้
G36: 1) R มีค่าอยู่ระหว่าง -1.00 ถึง +1.00
G37: 2) อำนาจจำแนก +1.00 หมายถึง ผู้ตอบในกลุ่มสูงทำ
G38: ข้อสอบข้อนั้นถูกทุกคน และผู้ตอบในกลุ่มต่ำทำข้อสอบ
G39: ข้อนั้นผิดทุกคน ซึ่งเป็นยอดปรารถนาของผู้ออกข้อสอบ
G40: ทุกคน
G41: 3) อำนาจจำแนก -1.00 หมายถึง ผู้ตอบในกลุ่มต่ำทำ
G42: ข้อสอบข้อนั้นถูกทุกคน และผู้ตอบในกลุ่มสูงทำข้อสอบ
G43: ข้อนั้นผิดทุกคน ซึ่งเป็นข้อสอบที่ผิดปกติ
G44: 4) อำนาจจำแนกที่เป็นบวก (+) หมายถึง ผู้ตอบใน
G45: กลุ่มสูงทำข้อสอบข้อนั้นได้มากกว่าผู้ตอบในกลุ่มต่ำ ใน
G46: ทางกลับกัน ค่าอำนาจจำแนกเป็นลบ (-) หมายถึง ผู้ตอบใน
G47: กลุ่มต่ำทำข้อสอบข้อนั้นได้มากกว่าผู้ตอบในกลุ่มสูง
G48: 5) อำนาจจำแนกเป็นศูนย์ (0) หมายถึง จำแนกไม่ได้
G49: เพราะจำนวนผู้ตอบในกลุ่มสูงทำข้อสอบข้อนั้นได้เท่ากับ
G50: จำนวนผู้ตอบในกลุ่มต่ำ ซึ่งมีสาเหตุมาจากกรณีใดกรณี
G51: หนึ่งในสามกรณีต่อไปนี้คือ หนึ่ง ข้อสอบง่ายเกินไป สอง
G52: ข้อสอบยากเกินไป สาม ข้อสอบคลุมเครือ
D54: Reliability ควรมีค่าตั้งแต่ 0.7 ขึ้นไป (ม.ขอนแก่น)
D57: แหล่งอ้างอิง
D58: Elvin, Chris, "Test Item Analysis Using Microsoft Excel Spreadsheet Program" http://www.eflclub.com/
D59: elvin/publications/2003/itemanalysis.html
D60: Brown, J.D. (1996). Testing in language programs. Upper Saddle River, NJ: Prentice Hall.
D61: Ebel, R.L. (1979). Essentials of educational measurement (3rd ed.). Englewood Cliffs, NJ: Prentice Hall.
D62: ม.ขอนแก่น "หลักการสร้างและหาประสิทธิภาพสื่อการสอน/นวัตกรรมการศึกษาและเครื่องมือวัดhttp://
D63: vdo.kku.ac.th/mediacenter/mediacenter-uploads/libs/เอกสารตอนที่4_372d.doc"
D64: วัฒนา สุนทรชัยม รศ. "การวิเคราะห์ข้อสอบเพื่อประกันคุณภาพการศึกษา" http://tulip.bu.ac.th/~wathna.s/ItemAnalysis.pdf
D65: Brown, James.D. "Item Facility and Item Discrimination", http://jalt.org/test/bro_17.htm
H66: ครูทองจุล ขันขาว กศ.บ., M.S.
H67: thongjoon@yahoo.com.sg
H68: http://www.thongjoon.com
D70: แหล่งที่มา
